Workbook

Sheet Foglio1
A1: ARTICOLO | B1: LINEA | C1: STAG. | D1: MODELLO | E1: PARTE | F1: MDNMAC | G1: COMPOSIZIONE | H1: COLORE | I1: DESC. COLORE | J1: TAGLIE | AF1: QTA | AG1: PREZZO RET. | AH1: VAL.TOT. | AI1: SETTORE
A2: =CONCATENATE(D2, " ", E2 ) -> DA6101 T3U71 | B2: Donna | C2: P.E. | D2: DA6101 | E2: T3U71 | F2: GILET PARKA CON CAPP | G2: 100%CO | H2: E2079 | I2: LATTE | J2: 34 | K2: 0 | L2: 36 | M2: 0 | N2: 38 | O2: 3 | P2: 40 | Q2: 3 | R2: 42 | S2: 4 | T2: 44 | U2: 3 | V2: 46 | W2: 0 | X2: 48 | Y2: 0 | Z2: 50 | AA2: 0 | AB2: 52 | AC2: 0 | AD2: 54 | AE2: 0 | AF2: =K2+M2+O2+Q2+S2+U2+W2+Y2+AA2+AC2+AE2 -> 13 | AG2: 1430 | AH2: =AG2*AF2 -> 18590 | AI2: D1-N2C
A3: =CONCATENATE(D3, " ", E3 ) -> DA6154 T4U26 | B3: Donna | C3: P.E. | D3: DA6154 | E3: T4U26 | F3: PARKA SETA IMPERMEAB | G3: 100%SE | H3: E610 | I3: GRIGIO | J3: 34 | K3: 0 | L3: 36 | M3: 0 | N3: 38 | O3: 1 | P3: 40 | Q3: 1 | R3: 42 | S3: 1 | T3: 44 | U3: 2 | V3: 46 | W3: 2 | X3: 48 | Y3: 0 | Z3: 50 | AA3: 0 | AB3: 52 | AC3: 0 | AD3: 54 | AE3: 0 | AF3: =K3+M3+O3+Q3+S3+U3+W3+Y3+AA3+AC3+AE3 -> 7 | AG3: 1950 | AH3: =AG3*AF3 -> 13650 | AI3: L1C-R10-O1-O8
A4: DA6165 T5U02 | B4: Donna | C4: P.E. | D4: DA6165 | E4: T5U02 | F4: GIACCA 2 BT C/TASCH | G4: 100%LI | H4: E2933 | I4: RIBES | J4: 34 | K4: 0 | L4: 36 | M4: 0 | N4: 38 | O4: 1 | P4: 40 | Q4: 3 | R4: 42 | S4: 2 | T4: 44 | U4: 0 | V4: 46 | W4: 0 | X4: 48 | Y4: 0 | Z4: 50 | AA4: 0 | AB4: 52 | AC4: 0 | AD4: 54 | AE4: 0 | AF4: 6 | AG4: 595 | AH4: 3570 | AI4: N3C
A5: DA6166 TAU65 | B5: Donna | C5: P.E. | D5: DA6166 | E5: TAU65 | F5: JACKET | G5: 86%CO14%SE | H5: E1161 | I5: BEIGE | J5: 34 | K5: 0 | L5: 36 | M5: 0 | N5: 38 | O5: 0 | P5: 40 | Q5: 1 | R5: 42 | S5: 0 | T5: 44 | U5: 0 | V5: 46 | W5: 0 | X5: 48 | Y5: 0 | Z5: 50 | AA5: 0 | AB5: 52 | AC5: 0 | AD5: 54 | AE5: 0 | AF5: 1 | AG5: 1150 | AH5: 1150 | AI5: A5
A6: DA6166 TAU65 | B6: Donna | C6: P.E. | D6: DA6166 | E6: TAU65 | F6: JACKET | G6: 86%CO14%SE | H6: E1161 | I6: BEIGE | J6: 34 | K6: 0 | L6: 36 | M6: 0 | N6: 38 | O6: 0 | P6: 40 | Q6: 0 | R6: 42 | S6: 1 | T6: 44 | U6: 0 | V6: 46 | W6: 0 | X6: 48 | Y6: 0 | Z6: 50 | AA6: 0 | AB6: 52 | AC6: 0 | AD6: 54 | AE6: 0 | AF6: 1 | AG6: 1150 | AH6: 1150 | AI6: L1C
A7: DA6217 TLU22 | B7: Donna | C7: P.E. | D7: DA6217 | E7: TLU22 | F7: DOPPIO COAT | G7: 57%CO43%PU | H7: EK965 | I7: BLU/BIANCO | J7: 34 | K7: 0 | L7: 36 | M7: 0 | N7: 38 | O7: 0 | P7: 40 | Q7: 0 | R7: 42 | S7: 0 | T7: 44 | U7: 1 | V7: 46 | W7: 0 | X7: 48 | Y7: 0 | Z7: 50 | AA7: 0 | AB7: 52 | AC7: 0 | AD7: 54 | AE7: 0 | AF7: 1 | AG7: 1695 | AH7: 1695 | AI7: A5
A8: DA6217 TLU22 | B8: Donna | C8: P.E. | D8: DA6217 | E8: TLU22 | F8: DOPPIO COAT | G8: 57%CO43%PU | H8: EK965 | I8: BLU/BIANCO | J8: 34 | K8: 0 | L8: 36 | M8: 0 | N8: 38 | O8: 2 | P8: 40 | Q8: 2 | R8: 42 | S8: 2 | T8: 44 | U8: 2 | V8: 46 | W8: 2 | X8: 48 | Y8: 0 | Z8: 50 | AA8: 0 | AB8: 52 | AC8: 0 | AD8: 54 | AE8: 0 | AF8: 10 | AG8: 1695 | AH8: 16950 | AI8: D1-I8
A9: DAN042 TLU22 | B9: Donna | C9: P.E. | D9: DAN042 | E9: TLU22 | F9: FIELD JACKET | G9: 57%CO43%PU | H9: EK964 | I9: VERDE MIL | J9: 34 | K9: 0 | L9: 36 | M9: 0 | N9: 38 | O9: 0 | P9: 40 | Q9: 0 | R9: 42 | S9: 0 | T9: 44 | U9: 1 | V9: 46 | W9: 0 | X9: 48 | Y9: 0 | Z9: 50 | AA9: 0 | AB9: 52 | AC9: 0 | AD9: 54 | AE9: 0 | AF9: 1 | AG9: 1500 | AH9: 1500 | AI9: A5
A10: DAN042 TLU22 | B10: Donna | C10: P.E. | D10: DAN042 | E10: TLU22 | F10: FIELD JACKET | G10: 57%CO43%PU | H10: EK964 | I10: VERDE MIL | J10: 34 | K10: 0 | L10: 36 | M10: 0 | N10: 38 | O10: 3 | P10: 40 | Q10: 6 | R10: 42 | S10: 8 | T10: 44 | U10: 9 | V10: 46 | W10: 2 | X10: 48 | Y10: 0 | Z10: 50 | AA10: 0 | AB10: 52 | AC10: 0 | AD10: 54 | AE10: 0 | AF10: 28 | AG10: 1500 | AH10: 42000 | AI10: A1-D6-F1C-N2
A11: DAO008 T4F04 | B11: Donna | C11: P.E. | D11: DAO008 | E11: T4F04 | F11: GONNA PALLONCINO | G11: 100%SE | H11: EG601 | I11: E1680/NATURALE | J11: 34 | K11: 0 | L11: 36 | M11: 0 | N11: 38 | O11: 0 | P11: 40 | Q11: 1 | R11: 42 | S11: 0 | T11: 44 | U11: 0 | V11: 46 | W11: 0 | X11: 48 | Y11: 0 | Z11: 50 | AA11: 0 | AB11: 52 | AC11: 0 | AD11: 54 | AE11: 0 | AF11: =K11+M11+O11+Q11+S11+U11+W11+Y11+AA11+AC11+AE11 -> 1 | AG11: 440 | AH11: 440 | AI11: P18C
A12: DAO051 T3U50 | B12: Donna | C12: P.E. | D12: DAO051 | E12: T3U50 | F12: GONNA SVASATA A PIEG | G12: 96%CO4%EA | H12: E2092 | I12: TALISMANO | J12: 34 | K12: 0 | L12: 36 | M12: 0 | N12: 38 | O12: 0 | P12: 40 | Q12: 0 | R12: 42 | S12: 2 | T12: 44 | U12: 0 | V12: 46 | W12: 0 | X12: 48 | Y12: 0 | Z12: 50 | AA12: 0 | AB12: 52 | AC12: 0 | AD12: 54 | AE12: 0 | AF12: =K12+M12+O12+Q12+S12+U12+W12+Y12+AA12+AC12+AE12 -> 2 | AG12: 450 | AH12: 900 | AI12: P13C
A13: DAP072 TAU07 | B13: Donna | C13: P.E. | D13: DAP072 | E13: TAU07 | F13: PANTALONE CON TAGLI | G13: 97%CO3%EA | H13: E2087 | I13: MARE | J13: 34 | K13: 0 | L13: 36 | M13: 0 | N13: 38 | O13: 1 | P13: 40 | Q13: 3 | R13: 42 | S13: 0 | T13: 44 | U13: 0 | V13: 46 | W13: 0 | X13: 48 | Y13: 0 | Z13: 50 | AA13: 0 | AB13: 52 | AC13: 0 | AD13: 54 | AE13: 0 | AF13: 4 | AG13: 395 | AH13: 1580 | AI13: B7-C7
A14: DAP072 TAU07 | B14: Donna | C14: P.E. | D14: DAP072 | E14: TAU07 | F14: PANTALONE CON TAGLI | G14: 97%CO3%EA | H14: E2087 | I14: MARE | J14: 34 | K14: 0 | L14: 36 | M14: 0 | N14: 38 | O14: 0 | P14: 40 | Q14: 1 | R14: 42 | S14: 0 | T14: 44 | U14: 0 | V14: 46 | W14: 0 | X14: 48 | Y14: 0 | Z14: 50 | AA14: 0 | AB14: 52 | AC14: 0 | AD14: 54 | AE14: 0 | AF14: 1 | AG14: 395 | AH14: 395 | AI14: P18C
A15: DAP077 T4U18 | B15: Donna | C15: P.E. | D15: DAP077 | E15: T4U18 | F15: PANTALONE PALAZZO | G15: 100%SE | H15: E2080 | I15: SABBIA | J15: 34 | K15: 0 | L15: 36 | M15: 0 | N15: 38 | O15: 2 | P15: 40 | Q15: 0 | R15: 42 | S15: 0 | T15: 44 | U15: 1 | V15: 46 | W15: 0 | X15: 48 | Y15: 0 | Z15: 50 | AA15: 0 | AB15: 52 | AC15: 0 | AD15: 54 | AE15: 0 | AF15: 3 | AG15: 470 | AH15: 1410 | AI15: A5
A16: DAP081 TAU07 | B16: Donna | C16: P.E. | D16: DAP081 | E16: TAU07 | F16: PANTALONE A SIGARETT | G16: 97%CO3%EA | H16: E100 | I16: BIANCO | J16: 34 | K16: 0 | L16: 36 | M16: 0 | N16: 38 | O16: 2 | P16: 40 | Q16: 0 | R16: 42 | S16: 0 | T16: 44 | U16: 0 | V16: 46 | W16: 0 | X16: 48 | Y16: 0 | Z16: 50 | AA16: 0 | AB16: 52 | AC16: 0 | AD16: 54 | AE16: 0 | AF16: 2 | AG16: 450 | AH16: 900 | AI16: B7-C9
A17: DAP081 TAU07 | B17: Donna | C17: P.E. | D17: DAP081 | E17: TAU07 | F17: PANTALONE A SIGARETT | G17: 97%CO3%EA | H17: E2551 | I17: NEUTRO | J17: 34 | K17: 0 | L17: 36 | M17: 0 | N17: 38 | O17: 2 | P17: 40 | Q17: 0 | R17: 42 | S17: 0 | T17: 44 | U17: 0 | V17: 46 | W17: 0 | X17: 48 | Y17: 0 | Z17: 50 | AA17: 0 | AB17: 52 | AC17: 0 | AD17: 54 | AE17: 0 | AF17: 2 | AG17: 450 | AH17: 900 | AI17: C9-C7
A18: DAP093 TAU46 | B18: Donna | C18: P.E. | D18: DAP093 | E18: TAU46 | F18: LUXURY JEANS SKINNY | G18: 93%CO5%WS2%EA | H18: E0564 | I18: RENNA | J18: 24 | K18: 0 | L18: 25 | M18: 0 | N18: 26 | O18: 0 | P18: 27 | Q18: 2 | R18: 28 | S18: 0 | T18: 29 | U18: 4 | V18: 30 | W18: 0 | X18: 31 | Y18: 0 | Z18: 32 | AA18: 0 | AB18: 33 | AC18: 0 | AD18: 34 | AE18: 0 | AF18: 6 | AG18: 548.8 | AH18: 3292.8 | AI18: C10
A19: DAP093 TAU46 | B19: Donna | C19: P.E. | D19: DAP093 | E19: TAU46 | F19: LUXURY JEANS SKINNY | G19: 93%CO5%WS2%EA | H19: E0564 | I19: RENNA | J19: 24 | K19: 0 | L19: 25 | M19: 1 | N19: 26 | O19: 3 | P19: 27 | Q19: 1 | R19: 28 | S19: 5 | T19: 29 | U19: 2 | V19: 30 | W19: 0 | X19: 31 | Y19: 0 | Z19: 32 | AA19: 0 | AB19: 33 | AC19: 0 | AD19: 34 | AE19: 0 | AF19: 12 | AG19: 548.8 | AH19: 6585.6 | AI19: H6
A20: DAP093 TAU46 | B20: Donna | C20: P.E. | D20: DAP093 | E20: TAU46 | F20: LUXURY JEANS SKINNY | G20: 93%CO5%WS2%EA | H20: E2088 | I20: NAVY BLU | J20: 24 | K20: 0 | L20: 25 | M20: 0 | N20: 26 | O20: 3 | P20: 27 | Q20: 0 | R20: 28 | S20: 4 | T20: 29 | U20: 2 | V20: 30 | W20: 0 | X20: 31 | Y20: 0 | Z20: 32 | AA20: 0 | AB20: 33 | AC20: 0 | AD20: 34 | AE20: 0 | AF20: 9 | AG20: 548.8 | AH20: 4939.2 | AI20: H6C-L7
A21: DAP102 TIU03 | B21: Donna | C21: P.E. | D21: DAP102 | E21: TIU03 | F21: PANTALONE FLUIDO A Z | G21: 97%VI3%EA | H21: E0817 | I21: AVORIO | J21: 34 | K21: 0 | L21: 36 | M21: 0 | N21: 38 | O21: 1 | P21: 40 | Q21: 2 | R21: 42 | S21: 0 | T21: 44 | U21: 0 | V21: 46 | W21: 3 | X21: 48 | Y21: 0 | Z21: 50 | AA21: 0 | AB21: 52 | AC21: 0 | AD21: 54 | AE21: 0 | AF21: 6 | AG21: 730 | AH21: 4380 | AI21: B7-C9-C7
A22: DAP105 T3V13 | B22: Donna | C22: P.E. | D22: DAP105 | E22: T3V13 | F22: PANTALONE A SIGARETT | G22: 97%CO3%EA | H22: E2549 | I22: GOCCIA | J22: 34 | K22: 0 | L22: 36 | M22: 0 | N22: 38 | O22: 0 | P22: 40 | Q22: 0 | R22: 42 | S22: 0 | T22: 44 | U22: 1 | V22: 46 | W22: 2 | X22: 48 | Y22: 0 | Z22: 50 | AA22: 0 | AB22: 52 | AC22: 0 | AD22: 54 | AE22: 0 | AF22: 3 | AG22: 530 | AH22: 1590 | AI22: B7-C9
A23: DAP115 TEU07 | B23: Donna | C23: P.E. | D23: DAP115 | E23: TEU07 | F23: PANTALONE UNIFORME | G23: 60%PL30%VI10%WO | H23: E2130 | I23: ACCIAIO | J23: 34 | K23: 0 | L23: 36 | M23: 0 | N23: 38 | O23: 0 | P23: 40 | Q23: 3 | R23: 42 | S23: 0 | T23: 44 | U23: 0 | V23: 46 | W23: 0 | X23: 48 | Y23: 0 | Z23: 50 | AA23: 0 | AB23: 52 | AC23: 0 | AD23: 54 | AE23: 0 | AF23: 3 | AG23: 204.4 | AH23: 613.2 | AI23: C10-H6
A24: DAP129 TAU07 | B24: Donna | C24: P.E. | D24: DAP129 | E24: TAU07 | F24: PANTALONE AMPIO C/PI | G24: 97%CO3%EA | H24: E0751 | I24: MALO/ACQUA | J24: 34 | K24: 0 | L24: 36 | M24: 0 | N24: 38 | O24: 0 | P24: 40 | Q24: 0 | R24: 42 | S24: 5 | T24: 44 | U24: 4 | V24: 46 | W24: 3 | X24: 48 | Y24: 0 | Z24: 50 | AA24: 0 | AB24: 52 | AC24: 0 | AD24: 54 | AE24: 0 | AF24: 12 | AG24: 395 | AH24: 4740 | AI24: L5C-N2C-N6
A25: DAQ050 T5U02 | B25: Donna | C25: P.E. | D25: DAQ050 | E25: T5U02 | F25: TOP RICAMATO SPACCHI | G25: 100%LI | H25: E1390 | I25: PORPORA | J25: 34 | K25: 0 | L25: 36 | M25: 0 | N25: 38 | O25: 1 | P25: 40 | Q25: 2 | R25: 42 | S25: 0 | T25: 44 | U25: 0 | V25: 46 | W25: 0 | X25: 48 | Y25: 0 | Z25: 50 | AA25: 0 | AB25: 52 | AC25: 0 | AD25: 54 | AE25: 0 | AF25: 3 | AG25: 465 | AH25: 1395 | AI25: A5
A26: DAQ050 T5U02 | B26: Donna | C26: P.E. | D26: DAQ050 | E26: T5U02 | F26: TOP RICAMATO SPACCHI | G26: 100%LI | H26: E2031 | I26: ACQUAMARINA | J26: 34 | K26: 0 | L26: 36 | M26: 0 | N26: 38 | O26: 6 | P26: 40 | Q26: 1 | R26: 42 | S26: 0 | T26: 44 | U26: 0 | V26: 46 | W26: 0 | X26: 48 | Y26: 0 | Z26: 50 | AA26: 0 | AB26: 52 | AC26: 0 | AD26: 54 | AE26: 0 | AF26: 7 | AG26: 465 | AH26: 3255 | AI26: N3C
A27: DH7031 F1K02 | B27: Donna | C27: A.I. | D27: DH7031 | E27: F1K02 | F27: TUTA CASHMERE | G27: 100%WS | H27: E2975 | I27: GRANITO | J27: XXS | K27: 0 | L27: XS | M27: 0 | N27: S | O27: 1 | P27: M | Q27: 0 | R27: L | S27: 0 | T27: XL | U27: 0 | V27: XXL | W27: 0 | X27: XXXL | Y27: 0 | Z27: 4XL | AA27: 0 | AC27: 0 | AE27: 0 | AF27: 1 | AG27: 1162 | AH27: 1162 | AI27: H7C
A28: DH7031 F1K02 | B28: Donna | C28: A.I. | D28: DH7031 | E28: F1K02 | F28: TUTA CASHMERE | G28: 100%WS | H28: E2987 | I28: NUDE | J28: XXS | K28: 0 | L28: XS | M28: 0 | N28: S | O28: 1 | P28: M | Q28: 0 | R28: L | S28: 0 | T28: XL | U28: 0 | V28: XXL | W28: 0 | X28: XXXL | Y28: 0 | Z28: 4XL | AA28: 0 | AC28: 0 | AE28: 0 | AF28: 1 | AG28: 1162 | AH28: 1162 | AI28: H7
A29: DH7035 F1C16 | B29: Donna | C29: A.I. | D29: DH7035 | E29: F1C16 | F29: PANTALONE TIPO JOGGI | G29: 100%WS | H29: E2722 | I29: GLICINE | J29: 34 | K29: 0 | L29: 36 | M29: 0 | N29: 38 | O29: 2 | P29: 40 | Q29: 2 | R29: 42 | S29: 3 | T29: 44 | U29: 0 | V29: 46 | W29: 1 | X29: 48 | Y29: 0 | Z29: 50 | AA29: 0 | AB29: 52 | AC29: 0 | AD29: 54 | AE29: 0 | AF29: 8 | AG29: 695 | AH29: 5560 | AI29: C11-N1-O7
A30: =CONCATENATE(D30, " ", E30 ) -> DH7035 F1C16 | B30: Donna | C30: A.I. | D30: DH7035 | E30: F1C16 | F30: PANTALONE TIPO JOGGI | G30: 100%WS | H30: E2098 | J30: 34 | L30: 36 | N30: 38 | O30: 0 | P30: 40 | R30: 42 | S30: 1 | T30: 44 | V30: 46 | W30: 0 | X30: 48 | Y30: 0 | Z30: 50 | AB30: 52 | AD30: 54 | AF30: 1 | AG30: 695 | AH30: 695 | AI30: P100
A31: DH7035 F1C16 | B31: Donna | C31: A.I. | D31: DH7035 | E31: F1C16 | F31: PANTALONE TIPO JOGGI | G31: 100%WS | H31: E1390 | J31: 34 | L31: 36 | N31: 38 | O31: 1 | P31: 40 | R31: 42 | S31: 1 | T31: 44 | V31: 46 | W31: 1 | X31: 48 | Y31: 1 | Z31: 50 | AB31: 52 | AD31: 54 | AF31: 4 | AG31: 695 | AH31: 2780 | AI31: P100
A32: DH7035 F3C24 | B32: Donna | C32: P.E. | D32: DH7035 | E32: F3C24 | F32: PANTALONE TIPO JOGGI | G32: 100%CO | H32: E2919 | I32: MATCHA/VERDE PIST | J32: 34 | K32: 0 | L32: 36 | M32: 0 | N32: 38 | O32: 2 | P32: 40 | Q32: 2 | R32: 42 | S32: 1 | T32: 44 | U32: 1 | V32: 46 | W32: 1 | X32: 48 | Y32: 0 | Z32: 50 | AA32: 0 | AB32: 52 | AC32: 0 | AD32: 54 | AE32: 0 | AF32: 7 | AG32: 420 | AH32: 2940 | AI32: G7C-N1
A33: DHP001 F8Z02 | B33: Donna | C33: P.E. | D33: DHP001 | E33: F8Z02 | F33: PANTALONE AMPIO AL F | G33: 70%WS30%SE | H33: E0091 | I33: PLATINUM | J33: XXS | K33: 0 | L33: XS | M33: 0 | N33: S | O33: 1 | P33: M | Q33: 0 | R33: L | S33: 1 | T33: XL | U33: 0 | V33: XXL | W33: 0 | X33: XXXL | Y33: 0 | Z33: 4XL | AA33: 0 | AC33: 0 | AE33: 0 | AF33: 2 | AG33: 695 | AH33: 1390 | AI33: E2-E7C
A34: DHP001 F8Z02 | B34: Donna | C34: P.E. | D34: DHP001 | E34: F8Z02 | F34: PANTALONE AMPIO AL F | G34: 70%WS30%SE | H34: E105 | I34: CANDIDO | J34: XXS | K34: 0 | L34: XS | M34: 5 | N34: S | O34: 8 | P34: M | Q34: 13 | R34: L | S34: 0 | T34: XL | U34: 0 | V34: XXL | W34: 0 | X34: XXXL | Y34: 0 | Z34: 4XL | AA34: 0 | AC34: 0 | AE34: 0 | AF34: 26 | AG34: 695 | AH34: 18070 | AI34: G8-R10
A35: DHP001 F8Z02 | B35: Donna | C35: P.E. | D35: DHP001 | E35: F8Z02 | F35: PANTALONE AMPIO AL F | G35: 70%WS30%SE | H35: E2073 | I35: LIGHT GREY | J35: XXS | K35: 0 | L35: XS | M35: 0 | N35: S | O35: 0 | P35: M | Q35: 2 | R35: L | S35: 0 | T35: XL | U35: 0 | V35: XXL | W35: 0 | X35: XXXL | Y35: 0 | Z35: 4XL | AA35: 0 | AC35: 0 | AE35: 0 | AF35: 2 | AG35: 779 | AH35: 1558 | AI35: P9
A36: DHP001 F8Z02 | B36: Donna | C36: P.E. | D36: DHP001 | E36: F8Z02 | F36: PANTALONE AMPIO AL F | G36: 70%WS30%SE | H36: E2927 | I36: AQUARIUM | J36: XXS | K36: 0 | L36: XS | M36: 5 | N36: S | O36: 1 | P36: M | Q36: 1 | R36: L | S36: 0 | T36: XL | U36: 0 | V36: XXL | W36: 0 | X36: XXXL | Y36: 0 | Z36: 4XL | AA36: 0 | AC36: 0 | AE36: 0 | AF36: 7 | AG36: 779 | AH36: 5453 | AI36: P9
A37: DHP001 F8Z02 | B37: Donna | C37: P.E. | D37: DHP001 | E37: F8Z02 | F37: PANTALONE AMPIO AL F | G37: 70%WS30%SE | H37: E2932 | I37: WAVE | J37: XXS | K37: 0 | L37: XS | M37: 2 | N37: S | O37: 1 | P37: M | Q37: 6 | R37: L | S37: 1 | T37: XL | U37: 0 | V37: XXL | W37: 0 | X37: XXXL | Y37: 0 | Z37: 4XL | AA37: 0 | AC37: 0 | AE37: 0 | AF37: 10 | AG37: 779 | AH37: 7790 | AI37: P6-P100
A38: DHP001 F8Z02 | B38: Donna | C38: P.E. | D38: DHP001 | E38: F8Z02 | F38: PANTALONE AMPIO AL F | G38: 70%WS30%SE | H38: E516 | I38: NERO | J38: XXS | K38: 0 | L38: XS | M38: 2 | N38: S | O38: 2 | P38: M | Q38: 1 | R38: L | S38: 2 | T38: XL | U38: 0 | V38: XXL | W38: 0 | X38: XXXL | Y38: 0 | Z38: 4XL | AA38: 0 | AC38: 0 | AE38: 0 | AF38: 7 | AG38: 695 | AH38: 4865 | AI38: B8-F6-G7-L3
A39: =CONCATENATE(D39, " ", E39 ) -> DJA036 JBU02 | B39: Donna | C39: P.E. | D39: DJA036 | E39: JBU02 | F39: GIROCOLLO S/M C/ TUB | G39: 84%LI16%SE | H39: E2571 | I39: ACQUAMARINA | J39: 34 | K39: 0 | L39: 36 | M39: 0 | N39: 38 | O39: 0 | P39: 40 | Q39: 2 | R39: 42 | S39: 0 | T39: 44 | U39: 0 | V39: 46 | W39: 0 | X39: 48 | Y39: 0 | Z39: 50 | AA39: 0 | AB39: 52 | AC39: 0 | AD39: 54 | AE39: 0 | AF39: 2 | AG39: 395 | AH39: 790 | AI39: F5C-H4-H8
A40: DJA037 JBU02 | B40: Donna | C40: P.E. | D40: DJA037 | E40: JBU02 | F40: GIROCOLLO M/L C/ TUB | G40: 84%LI16%SE | H40: E2571 | I40: ACQUAMARINA | J40: 34 | K40: 0 | L40: 36 | M40: 0 | N40: 38 | O40: 0 | P40: 40 | Q40: 2 | R40: 42 | S40: 4 | T40: 44 | U40: 0 | V40: 46 | W40: 2 | X40: 48 | Y40: 2 | Z40: 50 | AA40: 0 | AB40: 52 | AC40: 0 | AD40: 54 | AE40: 0 | AF40: 10 | AG40: 395 | AH40: 3950 | AI40: F5C-H4-H8
A41: DJA043 JBU04 | B41: Donna | C41: P.E. | D41: DJA043 | E41: JBU04 | F41: SCOLLO BARCA M/LUNGA | G41: 96%LI4%EA | H41: E3054 | I41: CACTUS | J41: 34 | K41: 0 | L41: 36 | M41: 0 | N41: 38 | O41: 0 | P41: 40 | Q41: 0 | R41: 42 | S41: 0 | T41: 44 | U41: 1 | V41: 46 | W41: 0 | X41: 48 | Y41: 0 | Z41: 50 | AA41: 0 | AB41: 52 | AC41: 0 | AD41: 54 | AE41: 0 | AF41: 1 | AG41: 295 | AH41: 295 | AI41: M7
A42: DJS017 JBU02 | B42: Donna | C42: P.E. | D42: DJS017 | E42: JBU02 | F42: ABITO M/M CON PIPING | G42: 84%LI16%SE | H42: EK697 | I42: E2116/LATTE | J42: 34 | K42: 0 | L42: 36 | M42: 0 | N42: 38 | O42: 0 | P42: 40 | Q42: 0 | R42: 42 | S42: 0 | T42: 44 | U42: 0 | V42: 46 | W42: 0 | X42: 48 | Y42: 1 | Z42: 50 | AA42: 1 | AB42: 52 | AC42: 0 | AD42: 54 | AE42: 0 | AF42: 2 | AG42: 575 | AH42: 1150 | AI42: P15
A43: DJS019 J3F03 | B43: Donna | C43: P.E. | D43: DJS019 | E43: J3F03 | F43: ABITO LUNGO ASIMMETR | G43: 68%CO24%SE8%LI | H43: EL216 | I43: ACQUAMARINA/PERLA | J43: 34 | K43: 0 | L43: 36 | M43: 0 | N43: 38 | O43: 0 | P43: 40 | Q43: 1 | R43: 42 | S43: 0 | T43: 44 | U43: 0 | V43: 46 | W43: 0 | X43: 48 | Y43: 0 | Z43: 50 | AA43: 0 | AB43: 52 | AC43: 0 | AD43: 54 | AE43: 0 | AF43: 1 | AG43: 535 | AH43: 535 | AI43: D4
A44: DJS019 J3F03 | B44: Donna | C44: P.E. | D44: DJS019 | E44: J3F03 | F44: ABITO LUNGO ASIMMETR | G44: 68%CO24%SE8%LI | H44: EL218 | I44: TAUPE/BEIGE | J44: 34 | K44: 0 | L44: 36 | M44: 0 | N44: 38 | O44: 0 | P44: 40 | Q44: 1 | R44: 42 | S44: 0 | T44: 44 | U44: 0 | V44: 46 | W44: 0 | X44: 48 | Y44: 0 | Z44: 50 | AA44: 0 | AB44: 52 | AC44: 0 | AD44: 54 | AE44: 0 | AF44: 1 | AG44: 535 | AH44: 535 | AI44: D4
A45: DJS020 J5U01 | B45: Donna | C45: P.E. | D45: DJS020 | E45: J5U01 | F45: ABITO ASIMMETRICO | G45: 96%LI4%EA | H45: EL226 | I45: BIANCO/MATCHA/PERLA | J45: 34 | K45: 0 | L45: 36 | M45: 0 | N45: 38 | O45: 0 | P45: 40 | Q45: 1 | R45: 42 | S45: 0 | T45: 44 | U45: 0 | V45: 46 | W45: 0 | X45: 48 | Y45: 0 | Z45: 50 | AA45: 0 | AB45: 52 | AC45: 0 | AD45: 54 | AE45: 0 | AF45: 1 | AG45: 760 | AH45: 760 | AI45: P16
A46: DJS020 J5U01 | B46: Donna | C46: P.E. | D46: DJS020 | E46: J5U01 | F46: ABITO ASIMMETRICO | G46: 96%LI4%EA | H46: EL226 | I46: BIANCO/MATCHA/PERLA | J46: 34 | K46: 0 | L46: 36 | M46: 0 | N46: 38 | O46: 0 | P46: 40 | Q46: 1 | R46: 42 | S46: 0 | T46: 44 | U46: 0 | V46: 46 | W46: 0 | X46: 48 | Y46: 0 | Z46: 50 | AA46: 0 | AB46: 52 | AC46: 0 | AD46: 54 | AE46: 0 | AF46: 1 | AG46: 760 | AH46: 760 | AI46: D3
A47: DJS021 J4U01 | B47: Donna | C47: P.E. | D47: DJS021 | E47: J4U01 | F47: ABITO | G47: 96%VI4%EA | H47: EL209 | I47: BIANCO/PERLA | J47: 34 | K47: 0 | L47: 36 | M47: 0 | N47: 38 | O47: 0 | P47: 40 | Q47: 1 | R47: 42 | S47: 0 | T47: 44 | U47: 0 | V47: 46 | W47: 0 | X47: 48 | Y47: 0 | Z47: 50 | AA47: 0 | AB47: 52 | AC47: 0 | AD47: 54 | AE47: 0 | AF47: 1 | AG47: 295 | AH47: 295 | AI47: F3C
A48: DJS022 J5U01 | B48: Donna | C48: P.E. | D48: DJS022 | E48: J5U01 | F48: ABITO CON NASTRINO | G48: 96%LI4%EA | H48: EL215 | I48: BIANCO/ROSSO/ARANCIO | J48: 34 | K48: 0 | L48: 36 | M48: 0 | N48: 38 | O48: 0 | P48: 40 | Q48: 2 | R48: 42 | S48: 0 | T48: 44 | U48: 0 | V48: 46 | W48: 0 | X48: 48 | Y48: 0 | Z48: 50 | AA48: 0 | AB48: 52 | AC48: 0 | AD48: 54 | AE48: 0 | AF48: 2 | AG48: 870 | AH48: 1740 | AI48: F2C
A49: =CONCATENATE(D49, " ", E49 ) -> DJS035 J4U03 | B49: Donna | C49: P.E. | D49: DJS035 | E49: J4U03 | F49: ABITO INCROCIATO | G49: 96%LI4%EA | H49: E100 | J49: 34 | K49: 0 | L49: 36 | M49: 0 | N49: 38 | O49: 0 | P49: 40 | Q49: 0 | R49: 42 | S49: 1 | T49: 44 | U49: 0 | V49: 46 | W49: 0 | X49: 48 | Y49: 0 | Z49: 50 | AA49: 0 | AB49: 52 | AC49: 0 | AD49: 54 | AE49: 0 | AF49: 1 | AG49: 870 | AH49: 870 | AI49: P100
A50: DL1004 PSN54 | B50: Accessori | C50: P.E. | D50: DL1004 | E50: PSN54 | F50: SANDALO C/CINTURINO | G50: 100%WX | H50: EI550 | I50: E2116/E105 | J50: 36 | K50: 0 | L50: 36M | M50: 0 | N50: 37 | O50: 0 | P50: 37M | Q50: 0 | R50: 38 | S50: 0 | T50: 38M | U50: 0 | V50: 39 | W50: 1 | X50: 39M | Y50: 0 | Z50: 40 | AA50: 2 | AB50: 40M | AC50: 0 | AD50: 41 | AE50: 0 | AF50: 3 | AG50: 471 | AH50: 1413 | AI50: C1
A51: DL1004 PSN54 | B51: Accessori | C51: P.E. | D51: DL1004 | E51: PSN54 | F51: SANDALO C/CINTURINO | G51: 100%WX | H51: EI972 | I51: E1919/E1390 | J51: 36 | K51: 1 | L51: 36M | M51: 0 | N51: 37 | O51: 1 | P51: 37M | Q51: 0 | R51: 38 | S51: 3 | T51: 38M | U51: 0 | V51: 39 | W51: 0 | X51: 39M | Y51: 0 | Z51: 40 | AA51: 2 | AB51: 40M | AC51: 0 | AD51: 41 | AE51: 1 | AF51: 8 | AG51: 471 | AH51: 3768 | AI51: C1-H5C
A52: DL1004 PSN54 | B52: Accessori | C52: P.E. | D52: DL1004 | E52: PSN54 | F52: SANDALO C/CINTURINO | G52: 100%WX | H52: EL017 | I52: E2925/E2919 | J52: 36 | K52: 0 | L52: 36M | M52: 0 | N52: 37 | O52: 0 | P52: 37M | Q52: 0 | R52: 38 | S52: 1 | T52: 38M | U52: 0 | V52: 39 | W52: 2 | X52: 39M | Y52: 0 | Z52: 40 | AA52: 3 | AB52: 40M | AC52: 0 | AD52: 41 | AE52: 1 | AF52: 7 | AG52: 471 | AH52: 3297 | AI52: C1
A53: DLZ008 T1U66 | B53: Accessori | C53: A.I. | D53: DLZ008 | E53: T1U66 | F53: SACCA INTRECCIATA | G53: 100%WS | H53: E2098 | I53: YOGURT | J53: TU | K53: 1 | M53: 0 | O53: 0 | Q53: 0 | S53: 0 | U53: 0 | W53: 0 | Y53: 0 | AA53: 0 | AC53: 0 | AE53: 0 | AF53: 1 | AG53: 1537.2 | AH53: 1537.2 | AI53: H5C
A54: DM7044 F3L14 | B54: Donna | C54: P.E. | D54: DM7044 | E54: F3L14 | F54: TUTA CON COULISSE | G54: 100%CO | H54: E2575 | I54: MATTONE | J54: XXS | K54: 0 | L54: XS | M54: 0 | N54: S | O54: 0 | P54: M | Q54: 2 | R54: L | S54: 0 | T54: XL | U54: 0 | V54: XXL | W54: 0 | X54: XXXL | Y54: 0 | Z54: 4XL | AA54: 0 | AC54: 0 | AE54: 0 | AF54: 2 | AG54: 995 | AH54: 1990 | AI54: M7C
A55: DMA010 F3Z10 | B55: Donna | C55: P.E. | D55: DMA010 | E55: F3Z10 | F55: GIROCOLLO MANICA COR | G55: 100%CO | H55: E1092 | I55: PEONIA | J55: 34 | K55: 0 | L55: 36 | M55: 0 | N55: 38 | O55: 0 | P55: 40 | Q55: 2 | R55: 42 | S55: 1 | T55: 44 | U55: 2 | V55: 46 | W55: 3 | X55: 48 | Y55: 2 | Z55: 50 | AA55: 0 | AB55: 52 | AC55: 0 | AD55: 54 | AE55: 0 | AF55: 10 | AG55: 275 | AH55: 2750 | AI55: A10-B8-H4
A56: DMA042 FDZ01 | B56: Donna | C56: P.E. | D56: DMA042 | E56: FDZ01 | F56: SCOLLO UOVO C/RICCIO | G56: 50%CO50%SE | H56: E0009 | I56: BLOSSOM | J56: 34 | K56: 0 | L56: 36 | M56: 0 | N56: 38 | O56: 0 | P56: 40 | Q56: 1 | R56: 42 | S56: 1 | T56: 44 | U56: 1 | V56: 46 | W56: 2 | X56: 48 | Y56: 0 | Z56: 50 | AA56: 0 | AB56: 52 | AC56: 0 | AD56: 54 | AE56: 0 | AF56: 5 | AG56: 340 | AH56: 1700 | AI56: E7C-H1
A57: DMA042 FDZ01 | B57: Donna | C57: P.E. | D57: DMA042 | E57: FDZ01 | F57: SCOLLO UOVO C/RICCIO | G57: 50%CO50%SE | H57: E0028 | I57: CLAY | J57: 34 | K57: 0 | L57: 36 | M57: 0 | N57: 38 | O57: 0 | P57: 40 | Q57: 1 | R57: 42 | S57: 1 | T57: 44 | U57: 0 | V57: 46 | W57: 1 | X57: 48 | Y57: 0 | Z57: 50 | AA57: 0 | AB57: 52 | AC57: 0 | AD57: 54 | AE57: 0 | AF57: 3 | AG57: 340 | AH57: 1020 | AI57: E7-H1
A58: DMA042 FDZ01 | B58: Donna | C58: P.E. | D58: DMA042 | E58: FDZ01 | F58: SCOLLO UOVO C/RICCIO | G58: 50%CO50%SE | H58: E0044 | I58: BAMBU' | J58: 34 | K58: 0 | L58: 36 | M58: 0 | N58: 38 | O58: 0 | P58: 40 | Q58: 1 | R58: 42 | S58: 0 | T58: 44 | U58: 0 | V58: 46 | W58: 1 | X58: 48 | Y58: 0 | Z58: 50 | AA58: 0 | AB58: 52 | AC58: 0 | AD58: 54 | AE58: 0 | AF58: 2 | AG58: 340 | AH58: 680 | AI58: E7-H1
A59: DMA042 FDZ01 | B59: Donna | C59: P.E. | D59: DMA042 | E59: FDZ01 | F59: SCOLLO UOVO C/RICCIO | G59: 50%CO50%SE | H59: E0047 | I59: MOOR VERDE SCURO | J59: 34 | K59: 0 | L59: 36 | M59: 0 | N59: 38 | O59: 0 | P59: 40 | Q59: 2 | R59: 42 | S59: 0 | T59: 44 | U59: 1 | V59: 46 | W59: 2 | X59: 48 | Y59: 1 | Z59: 50 | AA59: 0 | AB59: 52 | AC59: 0 | AD59: 54 | AE59: 0 | AF59: 6 | AG59: 340 | AH59: 2040 | AI59: H8-O7
A60: DMA042 FDZ01 | B60: Donna | C60: P.E. | D60: DMA042 | E60: FDZ01 | F60: SCOLLO UOVO C/RICCIO | G60: 50%CO50%SE | H60: E105 | I60: CANDIDO | J60: 34 | K60: 0 | L60: 36 | M60: 0 | N60: 38 | O60: 0 | P60: 40 | Q60: 0 | R60: 42 | S60: 2 | T60: 44 | U60: 1 | V60: 46 | W60: 2 | X60: 48 | Y60: 1 | Z60: 50 | AA60: 0 | AB60: 52 | AC60: 0 | AD60: 54 | AE60: 0 | AF60: 6 | AG60: 340 | AH60: 2040 | AI60: H8-O7
A61: DMA042 FDZ01 | B61: Donna | C61: P.E. | D61: DMA042 | E61: FDZ01 | F61: SCOLLO UOVO C/RICCIO | G61: 50%CO50%SE | H61: E11 | I61: BLU | J61: 34 | K61: 0 | L61: 36 | M61: 0 | N61: 38 | O61: 0 | P61: 40 | Q61: 2 | R61: 42 | S61: 1 | T61: 44 | U61: 0 | V61: 46 | W61: 1 | X61: 48 | Y61: 0 | Z61: 50 | AA61: 0 | AB61: 52 | AC61: 0 | AD61: 54 | AE61: 0 | AF61: 4 | AG61: 340 | AH61: 1360 | AI61: E8C-G5
A62: DMA089 F3Z10 | B62: Donna | C62: P.E. | D62: DMA089 | E62: F3Z10 | F62: GIROCOLLO C/CINTURA | G62: 100%CO | H62: E950 | I62: COIMBRA GRIGIO | J62: XXS | K62: 0 | L62: XS | M62: 0 | N62: S | O62: 2 | P62: M | Q62: 3 | R62: L | S62: 0 | T62: XL | U62: 0 | V62: XXL | W62: 0 | X62: XXXL | Y62: 0 | Z62: 4XL | AA62: 0 | AC62: 0 | AE62: 0 | AF62: 5 | AG62: 315 | AH62: 1575 | AI62: L6-P1-P5-P16
A63: =CONCATENATE(D63, " ", E63 ) -> DMA220 FBZ02 | B63: Donna | C63: P.E. | D63: DMA220 | E63: FBZ02 | F63: GIROCOLLO MANICA COR | G63: 83%LI17%PA | H63: E0813 | I63: FAGGIO | J63: XXS | K63: 0 | L63: XS | M63: 0 | N63: S | O63: 0 | P63: M | Q63: 3 | R63: L | S63: 0 | T63: XL | U63: 0 | V63: XXL | W63: 0 | X63: XXXL | Y63: 0 | Z63: 4XL | AA63: 0 | AC63: 0 | AE63: 0 | AF63: 3 | AG63: 535 | AH63: 1605 | AI63: P15
A64: DMA301 F1K02 | B64: Donna | C64: A.I. | D64: DMA301 | E64: F1K02 | F64: GIROCOLLO MANICA LUN | G64: 100%WS | H64: E2971 | I64: ACQUA | J64: 34 | K64: 0 | L64: 36 | M64: 0 | N64: 38 | O64: 2 | P64: 40 | Q64: 1 | R64: 42 | S64: 1 | T64: 44 | U64: 2 | V64: 46 | W64: 1 | X64: 48 | Y64: 0 | Z64: 50 | AA64: 0 | AB64: 52 | AC64: 0 | AD64: 54 | AE64: 0 | AF64: 7 | AG64: 490 | AH64: 3430 | AI64: B8-H4C
A65: DMA302 F1K02 | B65: Donna | C65: A.I. | D65: DMA302 | E65: F1K02 | F65: GIROCOLLO M/MANICA | G65: 100%WS | H65: E2076 | I65: FOCA | J65: 34 | K65: 0 | L65: 36 | M65: 0 | N65: 38 | O65: 1 | P65: 40 | Q65: 0 | R65: 42 | S65: 0 | T65: 44 | U65: 0 | V65: 46 | W65: 0 | X65: 48 | Y65: 0 | Z65: 50 | AA65: 0 | AB65: 52 | AC65: 0 | AD65: 54 | AE65: 0 | AF65: 1 | AG65: 428.4 | AH65: 428.4 | AI65: B6
A66: DMA302 F1K02 | B66: Donna | C66: A.I. | D66: DMA302 | E66: F1K02 | F66: GIROCOLLO M/MANICA | G66: 100%WS | H66: E2721 | I66: PESCA | J66: 34 | K66: 0 | L66: 36 | M66: 0 | N66: 38 | O66: 0 | P66: 40 | Q66: 0 | R66: 42 | S66: 1 | T66: 44 | U66: 0 | V66: 46 | W66: 0 | X66: 48 | Y66: 0 | Z66: 50 | AA66: 0 | AB66: 52 | AC66: 0 | AD66: 54 | AE66: 0 | AF66: 1 | AG66: 385 | AH66: 385 | AI66: M7
A67: DMA302 F1K02 | B67: Donna | C67: A.I. | D67: DMA302 | E67: F1K02 | F67: GIROCOLLO M/MANICA | G67: 100%WS | H67: E286 | I67: BLU DIESEL | J67: 34 | K67: 0 | L67: 36 | M67: 0 | N67: 38 | O67: 1 | P67: 40 | Q67: 0 | R67: 42 | S67: 0 | T67: 44 | U67: 0 | V67: 46 | W67: 0 | X67: 48 | Y67: 0 | Z67: 50 | AA67: 0 | AB67: 52 | AC67: 0 | AD67: 54 | AE67: 0 | AF67: 1 | AG67: 428.4 | AH67: =AG67*AF67 -> 428.4 | AI67: P10
A68: DMA302 F1K02 | B68: Donna | C68: A.I. | D68: DMA302 | E68: F1K02 | F68: GIROCOLLO M/MANICA | G68: 100%WS | H68: E2919 | I68: MATCHA | J68: 34 | K68: 0 | L68: 36 | M68: 0 | N68: 38 | O68: 0 | P68: 40 | Q68: 0 | R68: 42 | S68: 1 | T68: 44 | U68: 0 | V68: 46 | W68: 0 | X68: 48 | Y68: 0 | Z68: 50 | AA68: 0 | AB68: 52 | AC68: 0 | AD68: 54 | AE68: 0 | AF68: 1 | AG68: 429 | AH68: 429 | AI68: P9
A69: DMA302 F1K02 | B69: Donna | C69: A.I. | D69: DMA302 | E69: F1K02 | F69: GIROCOLLO M/MANICA | G69: 100%WS | H69: E2919 | I69: MATCHA | J69: 34 | K69: 0 | L69: 36 | M69: 0 | N69: 38 | O69: 0 | P69: 40 | Q69: 0 | R69: 42 | S69: 1 | T69: 44 | U69: 0 | V69: 46 | W69: 0 | X69: 48 | Y69: 0 | Z69: 50 | AA69: 0 | AB69: 52 | AC69: 0 | AD69: 54 | AE69: 0 | AF69: 1 | AG69: 429 | AH69: 429 | AI69: D2
A70: DMA302 F1K02 | B70: Donna | C70: A.I. | D70: DMA302 | E70: F1K02 | F70: GIROCOLLO M/MANICA | G70: 100%WS | H70: E2944 | I70: MALACHITE | J70: 34 | K70: 0 | L70: 36 | M70: 0 | N70: 38 | O70: 0 | P70: 40 | Q70: 1 | R70: 42 | S70: 0 | T70: 44 | U70: 0 | V70: 46 | W70: 0 | X70: 48 | Y70: 0 | Z70: 50 | AA70: 0 | AB70: 52 | AC70: 0 | AD70: 54 | AE70: 0 | AF70: 1 | AG70: 350 | AH70: 350 | AI70: D2
A71: DMA302 F1K02 | B71: Donna | C71: A.I. | D71: DMA302 | E71: F1K02 | F71: GIROCOLLO M/MANICA | G71: 100%WS | H71: E2944 | I71: MALACHITE | J71: 34 | K71: 0 | L71: 36 | M71: 0 | N71: 38 | O71: 0 | P71: 40 | Q71: 1 | R71: 42 | S71: 0 | T71: 44 | U71: 0 | V71: 46 | W71: 0 | X71: 48 | Y71: 0 | Z71: 50 | AA71: 0 | AB71: 52 | AC71: 0 | AD71: 54 | AE71: 0 | AF71: 1 | AG71: 429 | AH71: 429 | AI71: M7C
A72: DMA302 F1K02 | B72: Donna | C72: A.I. | D72: DMA302 | E72: F1K02 | F72: GIROCOLLO M/MANICA | G72: 100%WS | H72: E2976 | I72: POLVERE | J72: 34 | K72: 0 | L72: 36 | M72: 0 | N72: 38 | O72: 0 | P72: 40 | Q72: 0 | R72: 42 | S72: 0 | T72: 44 | U72: 0 | V72: 46 | W72: 1 | X72: 48 | Y72: 0 | Z72: 50 | AA72: 0 | AB72: 52 | AC72: 0 | AD72: 54 | AE72: 0 | AF72: 1 | AG72: 385 | AH72: 385 | AI72: M7
A73: DMA302 F1K02 | B73: Donna | C73: A.I. | D73: DMA302 | E73: F1K02 | F73: GIROCOLLO M/MANICA | G73: 100%WS | H73: E3039 | I73: MENTHOL | J73: 34 | K73: 0 | L73: 36 | M73: 0 | N73: 38 | O73: 1 | P73: 40 | Q73: 0 | R73: 42 | S73: 0 | T73: 44 | U73: 0 | V73: 46 | W73: 0 | X73: 48 | Y73: 0 | Z73: 50 | AA73: 0 | AB73: 52 | AC73: 0 | AD73: 54 | AE73: 0 | AF73: 1 | AG73: 385 | AH73: 385 | AI73: M7
A74: DMA337 F8Z02 | B74: Donna | C74: P.E. | D74: DMA337 | E74: F8Z02 | F74: GIROCOLLO BASICO M/L | G74: 70%WS30%SE | H74: E2606 | I74: CANDICE | J74: 34 | K74: 0 | L74: 36 | M74: 0 | N74: 38 | O74: 0 | P74: 40 | Q74: 0 | R74: 42 | S74: 0 | T74: 44 | U74: 1 | V74: 46 | W74: 0 | X74: 48 | Y74: 0 | Z74: 50 | AA74: 0 | AB74: 52 | AC74: 0 | AD74: 54 | AE74: 0 | AF74: 1 | AG74: 450 | AH74: 450 | AI74: M7C
A75: DMA338 F2Z07 | B75: Donna | C75: A.I. | D75: DMA338 | E75: F2Z07 | F75: GIROCOLLO BASICO M/ | G75: 100%WV | H75: E2635 | I75: ICE | J75: 34 | K75: 0 | L75: 36 | M75: 0 | N75: 38 | O75: 1 | P75: 40 | Q75: 0 | R75: 42 | S75: 0 | T75: 44 | U75: 0 | V75: 46 | W75: 0 | X75: 48 | Y75: 0 | Z75: 50 | AA75: 0 | AB75: 52 | AC75: 0 | AD75: 54 | AE75: 0 | AF75: 1 | AG75: 378 | AH75: 378 | AI75: C10
A76: DMA338 F2Z07 | B76: Donna | C76: A.I. | D76: DMA338 | E76: F2Z07 | F76: GIROCOLLO BASICO M/ | G76: 100%WV | H76: E2643 | I76: CARDINALE | J76: 34 | K76: 0 | L76: 36 | M76: 0 | N76: 38 | O76: 0 | P76: 40 | Q76: 0 | R76: 42 | S76: 1 | T76: 44 | U76: 0 | V76: 46 | W76: 0 | X76: 48 | Y76: 0 | Z76: 50 | AA76: 0 | AB76: 52 | AC76: 0 | AD76: 54 | AE76: 0 | AF76: =K76+M76+O76+Q76+S76+U76+W76+Y76+AA76+AC76+AE76 -> 1 | AG76: 378 | AH76: 378 | AI76: D2
A77: DMA338 F2Z10 | B77: Donna | C77: A.I. | D77: DMA338 | E77: F2Z10 | F77: GIROCOLLO BASICO M/ | G77: 100%WV | H77: E1384 | I77: ACQUARIUM | J77: 34 | K77: 0 | L77: 36 | M77: 0 | N77: 38 | O77: 0 | P77: 40 | Q77: 0 | R77: 42 | S77: 0 | T77: 44 | U77: 0 | V77: 46 | W77: 1 | X77: 48 | Y77: 0 | Z77: 50 | AA77: 0 | AB77: 52 | AC77: 0 | AD77: 54 | AE77: 0 | AF77: 1 | AG77: 361.2 | AH77: 361.2 | AI77: P10
A78: DMA338 F2Z10 | B78: Donna | C78: A.I. | D78: DMA338 | E78: F2Z10 | F78: GIROCOLLO BASICO M/ | G78: 100%WV | H78: E1899 | I78: COPPER | J78: 34 | K78: 0 | L78: 36 | M78: 0 | N78: 38 | O78: 0 | P78: 40 | Q78: 1 | R78: 42 | S78: 1 | T78: 44 | U78: 0 | V78: 46 | W78: 0 | X78: 48 | Y78: 0 | Z78: 50 | AA78: 0 | AB78: 52 | AC78: 0 | AD78: 54 | AE78: 0 | AF78: 2 | AG78: 361.2 | AH78: 722.4 | AI78: H2C-L8
A79: DMA338 F8Z02 | B79: Donna | C79: P.E. | D79: DMA338 | E79: F8Z02 | F79: GIROCOLLO BASICO M/ | G79: 70%WS30%SE | H79: E1912 | I79: FLUO | J79: 34 | K79: 0 | L79: 36 | M79: 0 | N79: 38 | O79: 1 | P79: 40 | Q79: 1 | R79: 42 | S79: 0 | T79: 44 | U79: 0 | V79: 46 | W79: 0 | X79: 48 | Y79: 0 | Z79: 50 | AA79: 0 | AB79: 52 | AC79: 0 | AD79: 54 | AE79: 0 | AF79: 2 | AG79: 470.4 | AH79: 940.8 | AI79: D2
A80: DMA373 F8Z02 | B80: Donna | C80: P.E. | D80: DMA373 | E80: F8Z02 | F80: GIROCOLLO MORBIDO MA | G80: 70%WS30%SE | H80: E0035 | I80: APPLE GREEN | J80: 34 | K80: 0 | L80: 36 | M80: 0 | N80: 38 | O80: 0 | P80: 40 | Q80: 0 | R80: 42 | S80: 1 | T80: 44 | U80: 0 | V80: 46 | W80: 0 | X80: 48 | Y80: 0 | Z80: 50 | AA80: 0 | AB80: 52 | AC80: 0 | AD80: 54 | AE80: 0 | AF80: 1 | AG80: 534.8 | AH80: 534.8 | AI80: H2C
A81: DMA398 F3C20 | B81: Donna | C81: P.E. | D81: DMA398 | E81: F3C20 | F81: GIROCOLLO C/RIGA PIA | G81: 100%CO | H81: EI081 | I81: E0751/E2645 | J81: XXS | K81: 0 | L81: XS | M81: 0 | N81: S | O81: 0 | P81: M | Q81: 1 | R81: L | S81: 0 | T81: XL | U81: 0 | V81: XXL | W81: 0 | X81: XXXL | Y81: 0 | Z81: 4XL | AA81: 0 | AC81: 0 | AE81: 0 | AF81: 1 | AG81: 395 | AH81: 395 | AI81: M7
A82: DMA398 F3C20 | B82: Donna | C82: P.E. | D82: DMA398 | E82: F3C20 | F82: GIROCOLLO C/RIGA PIA | G82: 100%CO | H82: EI081 | I82: E0751/E2645 | J82: XXS | K82: 0 | L82: XS | M82: 3 | N82: S | O82: 0 | P82: M | Q82: 0 | R82: L | S82: 0 | T82: XL | U82: 0 | V82: XXL | W82: 0 | X82: XXXL | Y82: 0 | Z82: 4XL | AA82: 0 | AC82: 0 | AE82: 0 | AF82: 3 | AG82: 395 | AH82: 1185 | AI82: E7C-E8
A83: DMA405 F2I05 | B83: Donna | C83: A.I. | D83: DMA405 | E83: F2I05 | F83: GIROCOLLO MAGLIA UNI | G83: 100%WV | H83: E2551 | I83: NEUTRO | J83: 34 | K83: 0 | L83: 36 | M83: 0 | N83: 38 | O83: 0 | P83: 40 | Q83: 1 | R83: 42 | S83: 0 | T83: 44 | U83: 0 | V83: 46 | W83: 1 | X83: 48 | Y83: 1 | Z83: 50 | AA83: 0 | AB83: 52 | AC83: 0 | AD83: 54 | AE83: 0 | AF83: 3 | AG83: 490 | AH83: 1470 | AI83: E3-E7C
A84: DMA408 F2Z07 | B84: Donna | C84: A.I. | D84: DMA408 | E84: F2Z07 | F84: GIROCOLLO RIGATO MEZ | G84: 100%WV | H84: EI085 | I84: E2594/E2638 | J84: 34 | K84: 0 | L84: 36 | M84: 0 | N84: 38 | O84: 1 | P84: 40 | Q84: 1 | R84: 42 | S84: 1 | T84: 44 | U84: 0 | V84: 46 | W84: 0 | X84: 48 | Y84: 0 | Z84: 50 | AA84: 0 | AB84: 52 | AC84: 0 | AD84: 54 | AE84: 0 | AF84: 3 | AG84: 365 | AH84: 1095 | AI84: E7-H1C
A85: DMA408 F2Z07 | B85: Donna | C85: A.I. | D85: DMA408 | E85: F2Z07 | F85: GIROCOLLO RIGATO MEZ | G85: 100%WV | H85: EK420 | I85: E2116/E2079 | J85: 34 | K85: 0 | L85: 36 | M85: 0 | N85: 38 | O85: 1 | P85: 40 | Q85: 1 | R85: 42 | S85: 0 | T85: 44 | U85: 0 | V85: 46 | W85: 0 | X85: 48 | Y85: 0 | Z85: 50 | AA85: 0 | AB85: 52 | AC85: 0 | AD85: 54 | AE85: 0 | AF85: 2 | AG85: 365 | AH85: 730 | AI85: E3-H1
A86: DMA408 F2Z07 | B86: Donna | C86: A.I. | D86: DMA408 | E86: F2Z07 | F86: GIROCOLLO RIGATO MEZ | G86: 100%WV | H86: EK420 | I86: BIANCO BLU RIGHE | J86: 34 | K86: 0 | L86: 36 | M86: 0 | N86: 38 | O86: 0 | P86: 40 | Q86: 1 | R86: 42 | S86: 0 | T86: 44 | U86: 0 | V86: 46 | W86: 0 | X86: 48 | Y86: 0 | Z86: 50 | AA86: 0 | AB86: 52 | AC86: 0 | AD86: 54 | AE86: 0 | AF86: 1 | AG86: 365 | AH86: 365 | AI86: P13
A87: DMA409 F2Z07 | B87: Donna | C87: A.I. | D87: DMA409 | E87: F2Z07 | F87: GIROCOLLO RIGATO M/L | G87: 100%WV | H87: EI085 | I87: E2594/E2638 | J87: 34 | K87: 0 | L87: 36 | M87: 0 | N87: 38 | O87: 0 | P87: 40 | Q87: 0 | R87: 42 | S87: 1 | T87: 44 | U87: 0 | V87: 46 | W87: 0 | X87: 48 | Y87: 0 | Z87: 50 | AA87: 1 | AB87: 52 | AC87: 0 | AD87: 54 | AE87: 1 | AF87: 3 | AG87: 440 | AH87: 1320 | AI87: P10C
A88: DMA421 F3Z16 | B88: Donna | C88: P.E. | D88: DMA421 | E88: F3Z16 | F88: GIROCOLLO OVER | G88: 100%CO | H88: E2655 | I88: BURGUNDY | J88: XXS | K88: 0 | L88: XS | M88: 0 | N88: S | O88: 0 | P88: M | Q88: 1 | R88: L | S88: 0 | T88: XL | U88: 0 | V88: XXL | W88: 0 | X88: XXXL | Y88: 0 | Z88: 4XL | AA88: 0 | AC88: 0 | AE88: 0 | AF88: 1 | AG88: 380 | AH88: 380 | AI88: M7C
A89: DMA422 F3L09 | B89: Donna | C89: P.E. | D89: DMA422 | E89: F3L09 | F89: GIROCOLLO MANICHE AM | G89: 100%CO | H89: E2655 | I89: BURGUNDY | J89: XXS | K89: 0 | L89: XS | M89: 6 | N89: S | O89: 12 | P89: M | Q89: 2 | R89: L | S89: 0 | T89: XL | U89: 0 | V89: XXL | W89: 0 | X89: XXXL | Y89: 0 | Z89: 4XL | AA89: 0 | AC89: 0 | AE89: 0 | AF89: 20 | AG89: 450 | AH89: 9000 | AI89: R10
A90: DMA422 F3L09 | B90: Donna | C90: P.E. | D90: DMA422 | E90: F3L09 | F90: GIROCOLLO MANICHE AM | G90: 100%CO | H90: E516 | I90: NERO | J90: XXS | K90: 0 | L90: XS | M90: 4 | N90: S | O90: 5 | P90: M | Q90: 3 | R90: L | S90: 0 | T90: XL | U90: 0 | V90: XXL | W90: 0 | X90: XXXL | Y90: 0 | Z90: 4XL | AA90: 0 | AC90: 0 | AE90: 0 | AF90: 12 | AG90: 450 | AH90: 5400 | AI90: G7C-R10-H4-H8-L3
A91: DMB147 F1K02 | B91: Donna | C91: A.I. | D91: DMB147 | E91: F1K02 | F91: SCOLLO A V BASICO M/ | G91: 100%WS | H91: E2919 | I91: MATCHA | J91: 34 | K91: 0 | L91: 36 | M91: 0 | N91: 38 | O91: 0 | P91: 40 | Q91: 0 | R91: 42 | S91: 0 | T91: 44 | U91: 1 | V91: 46 | W91: 0 | X91: 48 | Y91: 0 | Z91: 50 | AA91: 0 | AB91: 52 | AC91: 0 | AD91: 54 | AE91: 0 | AF91: 1 | AG91: 490 | AH91: 490 | AI91: M7C
A92: DMB147 F1K02 | B92: Donna | C92: A.I. | D92: DMB147 | E92: F1K02 | F92: SCOLLO A V BASICO M/ | G92: 100%WS | H92: E2924 | I92: PACIFICO | J92: 34 | K92: 0 | L92: 36 | M92: 0 | N92: 38 | O92: 2 | P92: 40 | Q92: 1 | R92: 42 | S92: 0 | T92: 44 | U92: 0 | V92: 46 | W92: 0 | X92: 48 | Y92: 0 | Z92: 50 | AA92: 0 | AB92: 52 | AC92: 0 | AD92: 54 | AE92: 0 | AF92: 3 | AG92: 546 | AH92: 1638 | AI92: P10
A93: DMB172 F3Z16 | B93: Donna | C93: P.E. | D93: DMB172 | E93: F3Z16 | F93: SCOLLO V M/RAGLAN C/ | G93: 100%CO | H93: E2639 | I93: SMERALDO | J93: XXS | K93: 0 | L93: XS | M93: 2 | N93: S | O93: 4 | P93: M | Q93: 0 | R93: L | S93: 0 | T93: XL | U93: 0 | V93: XXL | W93: 0 | X93: XXXL | Y93: 0 | Z93: 4XL | AA93: 0 | AC93: 0 | AE93: 0 | AF93: 6 | AG93: 380 | AH93: 2280 | AI93: F3-F2-N8-P1
A94: DMB172 F3Z16 | B94: Donna | C94: P.E. | D94: DMB172 | E94: F3Z16 | F94: SCOLLO V M/RAGLAN C/ | G94: 100%CO | H94: E2653 | I94: MANGANESE | J94: XXS | K94: 0 | L94: XS | M94: 0 | N94: S | O94: 2 | P94: M | Q94: 1 | R94: L | S94: 1 | T94: XL | U94: 0 | V94: XXL | W94: 0 | X94: XXXL | Y94: 0 | Z94: 4XL | AA94: 0 | AC94: 0 | AE94: 0 | AF94: 4 | AG94: 380 | AH94: 1520 | AI94: F3C-L6-N8
A95: DMB172 F3Z16 | B95: Donna | C95: P.E. | D95: DMB172 | E95: F3Z16 | F95: SCOLLO V M/RAGLAN C/ | G95: 100%CO | H95: E2654 | I95: MAGENTA | J95: XXS | K95: 0 | L95: XS | M95: 2 | N95: S | O95: 3 | P95: M | Q95: 2 | R95: L | S95: 0 | T95: XL | U95: 0 | V95: XXL | W95: 0 | X95: XXXL | Y95: 0 | Z95: 4XL | AA95: 0 | AC95: 0 | AE95: 0 | AF95: 7 | AG95: 380 | AH95: 2660 | AI95: F3-F2-L6-P1
A96: DMC192 F1K02 | B96: Donna | C96: A.I. | D96: DMC192 | E96: F1K02 | F96: MOCK NECK MANICA LUN | G96: 100%WS | H96: E2905 | I96: PINK | J96: 34 | K96: 0 | L96: 36 | M96: 0 | N96: 38 | O96: 0 | P96: 40 | Q96: 0 | R96: 42 | S96: 0 | T96: 44 | U96: 0 | V96: 46 | W96: 1 | X96: 48 | Y96: 0 | Z96: 50 | AA96: 0 | AB96: 52 | AC96: 0 | AD96: 54 | AE96: 0 | AF96: 1 | AG96: 574 | AH96: 574 | AI96: C10
A97: DMD043 F3Z16 | B97: Donna | C97: P.E. | D97: DMD043 | E97: F3Z16 | F97: POLO M/RAGLAN CON TA | G97: 100%CO | H97: E2653 | I97: MANGANESE MARRONE SCURO | J97: XXS | K97: 0 | L97: XS | M97: 2 | N97: S | O97: 0 | P97: M | Q97: 0 | R97: L | S97: 0 | T97: XL | U97: 0 | V97: XXL | W97: 0 | X97: XXXL | Y97: 0 | Z97: 4XL | AA97: 0 | AC97: 0 | AE97: 0 | AF97: 2 | AG97: 435 | AH97: 870 | AI97: P1-P11
A98: DMD043 F3Z16 | B98: Donna | C98: P.E. | D98: DMD043 | E98: F3Z16 | F98: POLO M/RAGLAN CON TA | G98: 100%CO | H98: E2654 | I98: MAGENTA | J98: XXS | K98: 0 | L98: XS | M98: 2 | N98: S | O98: 0 | P98: M | Q98: 0 | R98: L | S98: 0 | T98: XL | U98: 0 | V98: XXL | W98: 0 | X98: XXXL | Y98: 0 | Z98: 4XL | AA98: 0 | AC98: 0 | AE98: 0 | AF98: 2 | AG98: 435 | AH98: 870 | AI98: F3-P1
A99: DMD043 F3Z16 | B99: Donna | C99: P.E. | D99: DMD043 | E99: F3Z16 | F99: POLO M/RAGLAN CON TA | G99: 100%CO | H99: E2655 | I99: BURGUNDY | J99: XXS | K99: 0 | L99: XS | M99: 1 | N99: S | O99: 5 | P99: M | Q99: 0 | R99: L | S99: 0 | T99: XL | U99: 0 | V99: XXL | W99: 0 | X99: XXXL | Y99: 0 | Z99: 4XL | AA99: 0 | AC99: 0 | AE99: 0 | AF99: 6 | AG99: 435 | AH99: 2610 | AI99: F4C-F2-P16
A100: DMD044 F3Z16 | B100: Donna | C100: P.E. | D100: DMD044 | E100: F3Z16 | F100: POLO MANICA CORTA | G100: 100%CO | H100: EI064 | I100: NOCCIOLA | J100: 34 | K100: 0 | L100: 36 | M100: 0 | N100: 38 | O100: 0 | P100: 40 | Q100: 1 | R100: 42 | S100: 0 | T100: 44 | U100: 1 | V100: 46 | W100: 0 | X100: 48 | Y100: 0 | Z100: 50 | AA100: 0 | AB100: 52 | AC100: 0 | AD100: 54 | AE100: 0 | AF100: 2 | AG100: 465 | AH100: 930 | AI100: P13
A101: DMD044 F3Z16 | B101: Donna | C101: P.E. | D101: DMD044 | E101: F3Z16 | F101: POLO MANICA CORTA | G101: 100%CO | H101: EI064 | I101: E2657/E2658 | J101: 34 | K101: 0 | L101: 36 | M101: 0 | N101: 38 | O101: 0 | P101: 40 | Q101: 1 | R101: 42 | S101: 0 | T101: 44 | U101: 0 | V101: 46 | W101: 0 | X101: 48 | Y101: 0 | Z101: 50 | AA101: 0 | AB101: 52 | AC101: 0 | AD101: 54 | AE101: 0 | AF101: 1 | AG101: 465 | AH101: 465 | AI101: E3
A102: =CONCATENATE(D102, " ", E102 ) -> DMD044 F3Z16 | B102: Donna | C102: P.E. | D102: DMD044 | E102: F3Z16 | F102: POLO MANICA CORTA | G102: 100%CO | H102: EI095 | J102: 34 | K102: 0 | L102: 36 | M102: 0 | N102: 38 | O102: 0 | P102: 40 | Q102: 1 | R102: 42 | S102: 0 | T102: 44 | U102: 1 | V102: 46 | W102: 0 | X102: 48 | Y102: 0 | Z102: 50 | AA102: 0 | AB102: 52 | AC102: 0 | AD102: 54 | AE102: 0 | AF102: 2 | AG102: 465 | AH102: 930 | AI102: P100
A103: DMD044 F3Z16 | B103: Donna | C103: P.E. | D103: DMD044 | E103: F3Z16 | F103: POLO MANICA CORTA | G103: 100%CO | H103: EI065 | I103: E2654/E2079 | J103: 34 | K103: 0 | L103: 36 | M103: 0 | N103: 38 | O103: 0 | P103: 40 | Q103: 3 | R103: 42 | S103: 1 | T103: 44 | U103: 1 | V103: 46 | W103: 0 | X103: 48 | Y103: 0 | Z103: 50 | AA103: 0 | AB103: 52 | AC103: 0 | AD103: 54 | AE103: 0 | AF103: 5 | AG103: 465 | AH103: 2325 | AI103: E3
A104: DMD044 F3Z16 | B104: Donna | C104: P.E. | D104: DMD044 | E104: F3Z16 | F104: POLO MANICA CORTA | G104: 100%CO | H104: EK420 | I104: E2116/E2079 | J104: 34 | K104: 0 | L104: 36 | M104: 0 | N104: 38 | O104: 1 | P104: 40 | Q104: 1 | R104: 42 | S104: 0 | T104: 44 | U104: 0 | V104: 46 | W104: 0 | X104: 48 | Y104: 0 | Z104: 50 | AA104: 0 | AB104: 52 | AC104: 0 | AD104: 54 | AE104: 0 | AF104: 2 | AG104: 465 | AH104: 930 | AI104: E3-E8
A105: DME064 F8Z02 | B105: Donna | C105: P.E. | D105: DME064 | E105: F8Z02 | F105: TUNICA AMPIA SCOLLO | G105: 70%WS30%SE | H105: E2594 | I105: ICE FIELD | J105: 34 | K105: 0 | L105: 36 | M105: 0 | N105: 38 | O105: 0 | P105: 40 | Q105: 0 | R105: 42 | S105: 0 | T105: 44 | U105: 1 | V105: 46 | W105: 1 | X105: 48 | Y105: 0 | Z105: 50 | AA105: 0 | AB105: 52 | AC105: 0 | AD105: 54 | AE105: 0 | AF105: 2 | AG105: 630 | AH105: 1260 | AI105: G5C
A106: DME070 F3Z16 | B106: Donna | C106: P.E. | D106: DME070 | E106: F3Z16 | F106: SCOLLO QUADRATO M/LU | G106: 100%CO | H106: E2639 | I106: SMERALDO | J106: XXS | K106: 0 | L106: XS | M106: 5 | N106: S | O106: 5 | P106: M | Q106: 1 | R106: L | S106: 0 | T106: XL | U106: 0 | V106: XXL | W106: 0 | X106: XXXL | Y106: 0 | Z106: 4XL | AA106: 0 | AC106: 0 | AE106: 0 | AF106: 11 | AG106: 480 | AH106: 5280 | AI106: C2-D3-N8-P1-P5-P16
A107: DME070 F3Z16 | B107: Donna | C107: P.E. | D107: DME070 | E107: F3Z16 | F107: SCOLLO QUADRATO M/LU | G107: 100%CO | H107: E2653 | I107: RUGGINE | J107: XXS | K107: 0 | L107: XS | M107: 2 | N107: S | O107: 4 | P107: M | Q107: 4 | R107: L | S107: 0 | T107: XL | U107: 0 | V107: XXL | W107: 0 | X107: XXXL | Y107: 0 | Z107: 4XL | AA107: 0 | AC107: 0 | AE107: 0 | AF107: 10 | AG107: 480 | AH107: 4800 | AI107: D3-F4C-F3-F2-P1-P5-P15
A108: DME070 F3Z16 | B108: Donna | C108: P.E. | D108: DME070 | E108: F3Z16 | F108: SCOLLO QUADRATO M/LU | G108: 100%CO | H108: E2653 | I108: MANGANESE | J108: XXS | K108: 0 | L108: XS | M108: 0 | N108: S | O108: 1 | P108: M | Q108: 0 | R108: L | S108: 0 | T108: XL | U108: 0 | V108: XXL | W108: 0 | X108: XXXL | Y108: 0 | Z108: 4XL | AA108: 0 | AC108: 0 | AE108: 0 | AF108: 1 | AG108: 480 | AH108: 480 | AI108: F2
A109: DME070 F3Z16 | B109: Donna | C109: P.E. | D109: DME070 | E109: F3Z16 | F109: SCOLLO QUADRATO M/LU | G109: 100%CO | H109: E2654 | I109: MAGENTA | J109: XXS | K109: 0 | L109: XS | M109: 0 | N109: S | O109: 2 | P109: M | Q109: 0 | R109: L | S109: 0 | T109: XL | U109: 0 | V109: XXL | W109: 0 | X109: XXXL | Y109: 0 | Z109: 4XL | AA109: 0 | AC109: 0 | AE109: 0 | AF109: 2 | AG109: 480 | AH109: 960 | AI109: F2-P5
A110: DME071 F3C21 | B110: Donna | C110: P.E. | D110: DME071 | E110: F3C21 | F110: MONOSPALLA MANICA AM | G110: 100%CO | H110: E2079 | I110: LATTE | J110: 34 | K110: 0 | L110: 36 | M110: 0 | N110: 38 | O110: 0 | P110: 40 | Q110: 2 | R110: 42 | S110: 6 | T110: 44 | U110: 2 | V110: 46 | W110: 2 | X110: 48 | Y110: 0 | Z110: 50 | AA110: 0 | AB110: 52 | AC110: 0 | AD110: 54 | AE110: 0 | AF110: 12 | AG110: 310 | AH110: 3720 | AI110: F4C-F2-L6-P1-P11-P16
A111: DME071 F3C21 | B111: Donna | C111: P.E. | D111: DME071 | E111: F3C21 | F111: MONOSPALLA MANICA AM | G111: 100%CO | H111: E2088 | I111: NAVY BLU | J111: 34 | K111: 0 | L111: 36 | M111: 0 | N111: 38 | O111: 0 | P111: 40 | Q111: 1 | R111: 42 | S111: 1 | T111: 44 | U111: 2 | V111: 46 | W111: 0 | X111: 48 | Y111: 0 | Z111: 50 | AA111: 0 | AB111: 52 | AC111: 0 | AD111: 54 | AE111: 0 | AF111: 4 | AG111: 310 | AH111: 1240 | AI111: C2-F2-L6-P11
A112: DMF095 F2I05 | B112: Donna | C112: A.I. | D112: DMF095 | E112: F2I05 | F112: CANOTTA MAGLIA ELAST | G112: 100%WV | H112: E0751 | I112: MALO | J112: 34 | K112: 0 | L112: 36 | M112: 0 | N112: 38 | O112: 0 | P112: 40 | Q112: 0 | R112: 42 | S112: 1 | T112: 44 | U112: 0 | V112: 46 | W112: 0 | X112: 48 | Y112: 0 | Z112: 50 | AA112: 0 | AB112: 52 | AC112: 0 | AD112: 54 | AE112: 0 | AF112: 1 | AG112: 488 | AH112: 488 | AI112: P10
A113: DMF095 F2I05 | B113: Donna | C113: A.I. | D113: DMF095 | E113: F2I05 | F113: CANOTTA MAGLIA ELAST | G113: 100%WV | H113: E2088 | I113: NAVY BLU | J113: 34 | K113: 0 | L113: 36 | M113: 0 | N113: 38 | O113: 0 | P113: 40 | Q113: 2 | R113: 42 | S113: 1 | T113: 44 | U113: 0 | V113: 46 | W113: 0 | X113: 48 | Y113: 0 | Z113: 50 | AA113: 0 | AB113: 52 | AC113: 0 | AD113: 54 | AE113: 0 | AF113: 3 | AG113: 488 | AH113: 1464 | AI113: P10
A114: DMF104 F1804 | B114: Donna | C114: A.I. | D114: DMF104 | E114: F1804 | F114: CANOTTA RASATA | G114: 100%WS | H114: E2095 | I114: TRAMONTO | J114: 34 | K114: 0 | L114: 36 | M114: 0 | N114: 38 | O114: 0 | P114: 40 | Q114: 1 | R114: 42 | S114: 0 | T114: 44 | U114: 1 | V114: 46 | W114: 0 | X114: 48 | Y114: 0 | Z114: 50 | AA114: 0 | AB114: 52 | AC114: 0 | AD114: 54 | AE114: 0 | AF114: 2 | AG114: 597 | AH114: 1194 | AI114: D2
A115: DMG014 F3Z10 | B115: Donna | C115: P.E. | D115: DMG014 | E115: F3Z10 | F115: REBECCA | G115: 100%CO | H115: E1092 | I115: PEONIA | J115: 34 | K115: 0 | L115: 36 | M115: 0 | N115: 38 | O115: 0 | P115: 40 | Q115: 3 | R115: 42 | S115: 2 | T115: 44 | U115: 3 | V115: 46 | W115: 3 | X115: 48 | Y115: 2 | Z115: 50 | AA115: 0 | AB115: 52 | AC115: 0 | AD115: 54 | AE115: 0 | AF115: 13 | AG115: 435 | AH115: 5655 | AI115: B8-L4
A116: DMG102 F1K02 | B116: Donna | C116: A.I. | D116: DMG102 | E116: F1K02 | F116: CARDIGAN M/LUNGA | G116: 100%WS | H116: E2919 | I116: MATCHA | J116: 34 | K116: 0 | L116: 36 | M116: 0 | N116: 38 | O116: 0 | P116: 40 | Q116: 0 | R116: 42 | S116: 0 | T116: 44 | U116: 1 | V116: 46 | W116: 0 | X116: 48 | Y116: 0 | Z116: 50 | AA116: 0 | AB116: 52 | AC116: 0 | AD116: 54 | AE116: 0 | AF116: 1 | AG116: 720 | AH116: 720 | AI116: D2
A117: DMG281 S3A01 | B117: Donna | C117: P.E. | D117: DMG281 | E117: S3A01 | F117: CARDIGAN ASIMMETRICO | G117: 100%CO | H117: E0447 | I117: BUCANEVE | J117: XXS | K117: 0 | L117: XS | M117: 0 | N117: S | O117: 2 | P117: M | Q117: 1 | R117: L | S117: 0 | T117: XL | U117: 0 | V117: XXL | W117: 0 | X117: XXXL | Y117: 0 | Z117: 4XL | AA117: 0 | AC117: 0 | AE117: 0 | AF117: 3 | AG117: 380 | AH117: 1140 | AI117: E2-H1C
A118: DMG343 F1K02 | B118: Donna | C118: A.I. | D118: DMG343 | E118: F1K02 | F118: CARDIGAN REBECCA | G118: 100%WS | H118: E2893 | I118: CAMEL | J118: 34 | K118: 0 | L118: 36 | M118: 0 | N118: 38 | O118: 1 | P118: 40 | Q118: 0 | R118: 42 | S118: 0 | T118: 44 | U118: 0 | V118: 46 | W118: 0 | X118: 48 | Y118: 0 | Z118: 50 | AA118: 0 | AB118: 52 | AC118: 0 | AD118: 54 | AE118: 0 | AF118: 1 | AG118: 730.8 | AH118: 730.8 | AI118: D2
A119: DMG368 F2Z10 | B119: Donna | C119: A.I. | D119: DMG368 | E119: F2Z10 | F119: REBECCA M/L CON ZZ | G119: 100%WV | H119: E1396 | I119: ALBICOCCA | J119: 34 | K119: 0 | L119: 36 | M119: 0 | N119: 38 | O119: 1 | P119: 40 | Q119: 1 | R119: 42 | S119: 0 | T119: 44 | U119: 0 | V119: 46 | W119: 0 | X119: 48 | Y119: 0 | Z119: 50 | AA119: 0 | AB119: 52 | AC119: 0 | AD119: 54 | AE119: 0 | AF119: 2 | AG119: 518 | AH119: 1036 | AI119: D2
A120: DMG368 F2Z10 | B120: Donna | C120: A.I. | D120: DMG368 | E120: F2Z10 | F120: REBECCA M/L CON ZZ | G120: 100%WV | H120: E1773 | I120: SIENNA | J120: 34 | K120: 0 | L120: 36 | M120: 0 | N120: 38 | O120: 0 | P120: 40 | Q120: 0 | R120: 42 | S120: 0 | T120: 44 | U120: 1 | V120: 46 | W120: 0 | X120: 48 | Y120: 0 | Z120: 50 | AA120: 0 | AB120: 52 | AC120: 0 | AD120: 54 | AE120: 0 | AF120: 1 | AG120: 518 | AH120: 518 | AI120: C10
A121: DMG368 F2Z10 | B121: Donna | C121: A.I. | D121: DMG368 | E121: F2Z10 | F121: REBECCA M/L CON ZZ | G121: 100%WV | H121: E1899 | I121: COPPER | J121: 34 | K121: 0 | L121: 36 | M121: 0 | N121: 38 | O121: 0 | P121: 40 | Q121: 0 | R121: 42 | S121: 1 | T121: 44 | U121: 0 | V121: 46 | W121: 0 | X121: 48 | Y121: 0 | Z121: 50 | AA121: 0 | AB121: 52 | AC121: 0 | AD121: 54 | AE121: 0 | AF121: 1 | AG121: 518 | AH121: 518 | AI121: C10
A122: DMG368 F2Z10 | B122: Donna | C122: A.I. | D122: DMG368 | E122: F2Z10 | F122: REBECCA M/L CON ZZ | G122: 100%WV | H122: E1980 | I122: CINABRO | J122: 34 | K122: 0 | L122: 36 | M122: 0 | N122: 38 | O122: 0 | P122: 40 | Q122: 0 | R122: 42 | S122: 1 | T122: 44 | U122: 0 | V122: 46 | W122: 0 | X122: 48 | Y122: 0 | Z122: 50 | AA122: 0 | AB122: 52 | AC122: 0 | AD122: 54 | AE122: 0 | AF122: 1 | AG122: 518 | AH122: 518 | AI122: C10
A123: DMG368 F2Z10 | B123: Donna | C123: A.I. | D123: DMG368 | E123: F2Z10 | F123: REBECCA M/L CON ZZ | G123: 100%WV | H123: EF011 | I123: CIELO | J123: 34 | K123: 0 | L123: 36 | M123: 0 | N123: 38 | O123: 0 | P123: 40 | Q123: 1 | R123: 42 | S123: 0 | T123: 44 | U123: 0 | V123: 46 | W123: 0 | X123: 48 | Y123: 0 | Z123: 50 | AA123: 0 | AB123: 52 | AC123: 0 | AD123: 54 | AE123: 0 | AF123: 1 | AG123: 518 | AH123: 518 | AI123: C10
A124: =CONCATENATE(D124, " ", E124 ) -> DMG368 F8Z02 | B124: Donna | C124: P.E. | D124: DMG368 | E124: F8Z02 | F124: REBECCA M/L CON ZZ | G124: 70%WS30%SE | H124: E1138 | I124: KAKI | J124: 34 | K124: 0 | L124: 36 | M124: 0 | N124: 38 | O124: 0 | P124: 40 | Q124: 0 | R124: 42 | S124: 1 | T124: 44 | U124: 1 | V124: 46 | W124: 1 | X124: 48 | Y124: 0 | Z124: 50 | AA124: 0 | AB124: 52 | AC124: 0 | AD124: 54 | AE124: 0 | AF124: 3 | AG124: 644 | AH124: 1932 | AI124: H2C
A125: DMG368 F8Z02 | B125: Donna | C125: P.E. | D125: DMG368 | E125: F8Z02 | F125: REBECCA M/L CON ZZ | G125: 70%WS30%SE | H125: E1613 | I125: ANICE | J125: 34 | K125: 0 | L125: 36 | M125: 0 | N125: 38 | O125: 0 | P125: 40 | Q125: 1 | R125: 42 | S125: 0 | T125: 44 | U125: 0 | V125: 46 | W125: 0 | X125: 48 | Y125: 0 | Z125: 50 | AA125: 0 | AB125: 52 | AC125: 0 | AD125: 54 | AE125: 0 | AF125: 1 | AG125: 644 | AH125: 644 | AI125: D2
A126: DMG368 F8Z02 | B126: Donna | C126: P.E. | D126: DMG368 | E126: F8Z02 | F126: REBECCA M/L CON ZZ | G126: 70%WS30%SE | H126: E1613 | I126: ANICE | J126: 34 | K126: 0 | L126: 36 | M126: 0 | N126: 38 | O126: 0 | P126: 40 | Q126: 2 | R126: 42 | S126: 0 | T126: 44 | U126: 0 | V126: 46 | W126: 0 | X126: 48 | Y126: 0 | Z126: 50 | AA126: 1 | AB126: 52 | AC126: 0 | AD126: 54 | AE126: 0 | AF126: 3 | AG126: 644 | AH126: 1932 | AI126: P6
A127: DMG370 F4I05 | B127: Donna | C127: P.E. | D127: DMG370 | E127: F4I05 | F127: CARDIGAN C/SPACCHI E | G127: 100%SE | H127: E2565 | I127: CREMA | J127: XXS | K127: 0 | L127: XS | M127: 0 | N127: S | O127: 2 | P127: M | Q127: 1 | R127: L | S127: 0 | T127: XL | U127: 0 | V127: XXL | W127: 0 | X127: XXXL | Y127: 0 | Z127: 4XL | AA127: 0 | AC127: 0 | AE127: 0 | AF127: 3 | AG127: 620 | AH127: 1860 | AI127: F2C-P5
A128: DMG370 F4I05 | B128: Donna | C128: P.E. | D128: DMG370 | E128: F4I05 | F128: CARDIGAN C/SPACCHI E | G128: 100%SE | H128: E2567 | I128: MELOGRANO | J128: XXS | K128: 0 | L128: XS | M128: 0 | N128: S | O128: 0 | P128: M | Q128: 1 | R128: L | S128: 0 | T128: XL | U128: 0 | V128: XXL | W128: 0 | X128: XXXL | Y128: 0 | Z128: 4XL | AA128: 0 | AC128: 0 | AE128: 0 | AF128: 1 | AG128: 620 | AH128: 620 | AI128: H1
A129: DMG370 F4I05 | B129: Donna | C129: P.E. | D129: DMG370 | E129: F4I05 | F129: CARDIGAN C/SPACCHI E | G129: 100%SE | H129: E2567 | I129: MELOGRANO | J129: XXS | K129: 0 | L129: XS | M129: 0 | N129: S | O129: 4 | P129: M | Q129: 1 | R129: L | S129: 2 | T129: XL | U129: 0 | V129: XXL | W129: 0 | X129: XXXL | Y129: 0 | Z129: 4XL | AA129: 0 | AC129: 0 | AE129: 0 | AF129: 7 | AG129: 620 | AH129: 4340 | AI129: L6-N8-P5
A130: DMG370 F4I05 | B130: Donna | C130: P.E. | D130: DMG370 | E130: F4I05 | F130: CARDIGAN C/SPACCHI E | G130: 100%SE | H130: E2568 | I130: RUBINO | J130: XXS | K130: 0 | L130: XS | M130: 0 | N130: S | O130: 8 | P130: M | Q130: 1 | R130: L | S130: 0 | T130: XL | U130: 0 | V130: XXL | W130: 0 | X130: XXXL | Y130: 0 | Z130: 4XL | AA130: 0 | AC130: 0 | AE130: 0 | AF130: 9 | AG130: 620 | AH130: 5580 | AI130: F2-L6-N8-P11-P13
A131: DMG377 F3C14 | B131: Donna | C131: P.E. | D131: DMG377 | E131: F3C14 | F131: CARDIGAN C/ZIP P.PER | G131: 100%CO | H131: E2570 | I131: OCEAN | J131: 34 | K131: 0 | L131: 36 | M131: 0 | N131: 38 | O131: 0 | P131: 40 | Q131: 0 | R131: 42 | S131: 1 | T131: 44 | U131: 0 | V131: 46 | W131: 0 | X131: 48 | Y131: 0 | Z131: 50 | AA131: 0 | AB131: 52 | AC131: 0 | AD131: 54 | AE131: 0 | AF131: 1 | AG131: 770 | AH131: =AG131*AF131 -> 770 | AI131: M7C
A132: DMG379 F3L11 | B132: Donna | C132: P.E. | D132: DMG379 | E132: F3L11 | F132: CARDIGAN IN COSTA | G132: 100%CO | H132: E2576 | I132: ARAGOSTA | J132: XXS | K132: 0 | L132: XS | M132: 0 | N132: S | O132: 0 | P132: M | Q132: 1 | R132: L | S132: 0 | T132: XL | U132: 0 | V132: XXL | W132: 0 | X132: XXXL | Y132: 0 | Z132: 4XL | AA132: 0 | AC132: 0 | AE132: 0 | AF132: 1 | AG132: 535 | AH132: 535 | AI132: E7C
A133: DMG380 F3I11 | B133: Donna | C133: P.E. | D133: DMG380 | E133: F3I11 | F133: CARDIGAN LUNGO LINKS | G133: 100%CO | H133: E2570 | I133: OCEAN | J133: XXS | K133: 0 | L133: XS | M133: 0 | N133: S | O133: 0 | P133: M | Q133: 1 | R133: L | S133: 0 | T133: XL | U133: 0 | V133: XXL | W133: 0 | X133: XXXL | Y133: 0 | Z133: 4XL | AA133: 0 | AC133: 0 | AE133: 0 | AF133: 1 | AG133: 785 | AH133: 785 | AI133: E7C
A134: DMG384 F1K02 | B134: Donna | C134: A.I. | D134: DMG384 | E134: F1K02 | F134: CARDIGAN LUNGO C/BOT | G134: 100%WS | H134: E2887 | I134: LATTIGINOSO | J134: 34 | K134: 0 | L134: 36 | M134: 0 | N134: 38 | O134: 1 | P134: 40 | Q134: 0 | R134: 42 | S134: 0 | T134: 44 | U134: 0 | V134: 46 | W134: 0 | X134: 48 | Y134: 0 | Z134: 50 | AA134: 0 | AB134: 52 | AC134: 0 | AD134: 54 | AE134: 0 | AF134: 1 | AG134: 1114.4 | AH134: 1114.4 | AI134: P10C
A135: DMG408 F3Z16 | B135: Donna | C135: P.E. | D135: DMG408 | E135: F3Z16 | F135: CARDIGAN OVER M/RAGL | G135: 100%CO | H135: E2636 | I135: ARDESIA | J135: XXS | K135: 0 | L135: XS | M135: 1 | N135: S | O135: 3 | P135: M | Q135: 0 | R135: L | S135: 0 | T135: XL | U135: 0 | V135: XXL | W135: 0 | X135: XXXL | Y135: 0 | Z135: 4XL | AA135: 0 | AC135: 0 | AE135: 0 | AF135: 4 | AG135: 505 | AH135: 2020 | AI135: F2C-P1-P13
A136: DMK013 F1K02 | B136: Donna | C136: A.I. | D136: DMK013 | E136: F1K02 | F136: BOMBER ZIP CN CAPPUC | G136: 100%WS | H136: E2924 | I136: PACIFICO | J136: XXS | K136: 0 | L136: XS | M136: 0 | N136: S | O136: 1 | P136: M | Q136: 0 | R136: L | S136: 0 | T136: XL | U136: 0 | V136: XXL | W136: 0 | X136: XXXL | Y136: 0 | Z136: 4XL | AA136: 0 | AC136: 0 | AE136: 0 | AF136: 1 | AG136: 1644 | AH136: 1644 | AI136: L8C
A137: DMN050 F3A18 | B137: Donna | C137: P.E. | D137: DMN050 | E137: F3A18 | F137: GIACCA MONOPETTO PUN | G137: 100%CO | H137: E2655 | I137: BURGUNDY | J137: 34 | K137: 0 | L137: 36 | M137: 0 | N137: 38 | O137: 0 | P137: 40 | Q137: 0 | R137: 42 | S137: 1 | T137: 44 | U137: 1 | V137: 46 | W137: 0 | X137: 48 | Y137: 0 | Z137: 50 | AA137: 0 | AB137: 52 | AC137: 0 | AD137: 54 | AE137: 0 | AF137: 2 | AG137: 505 | AH137: 1010 | AI137: M7C
A138: DMN053 F2I05 | B138: Donna | C138: A.I. | D138: DMN053 | E138: F2I05 | F138: GIACCA MAGLIA ELASTI | G138: 100%WV | H138: E2635 | I138: ICE | J138: 34 | K138: 0 | L138: 36 | M138: 0 | N138: 38 | O138: 0 | P138: 40 | Q138: 0 | R138: 42 | S138: 0 | T138: 44 | U138: 1 | V138: 46 | W138: 0 | X138: 48 | Y138: 0 | Z138: 50 | AA138: 0 | AB138: 52 | AC138: 0 | AD138: 54 | AE138: 0 | AF138: 1 | AG138: 927 | AH138: 927 | AI138: M7
A139: DMN053 F2I06 | B139: Donna | C139: A.I. | D139: DMN053 | E139: F2I06 | F139: GIACCA MAGLIA ELASTI | G139: 100%WV | H139: E2945 | I139: LILLÀ | J139: 34 | K139: 0 | L139: 36 | M139: 0 | N139: 38 | O139: 0 | P139: 40 | Q139: 1 | R139: 42 | S139: 1 | T139: 44 | U139: 1 | V139: 46 | W139: 0 | X139: 48 | Y139: 0 | Z139: 50 | AA139: 0 | AB139: 52 | AC139: 0 | AD139: 54 | AE139: 0 | AF139: 3 | AG139: 927 | AH139: 2781 | AI139: H7C-M10
A140: DMN053 FAI01 | B140: Donna | C140: P.E. | D140: DMN053 | E140: FAI01 | F140: GIACCA MAGLIA ELASTI | G140: 46%CO46%SE6%PA2%PU | H140: E1047 | I140: NUDO | J140: 34 | K140: 0 | L140: 36 | M140: 0 | N140: 38 | O140: 0 | P140: 40 | Q140: 0 | R140: 42 | S140: 2 | T140: 44 | U140: 1 | V140: 46 | W140: 0 | X140: 48 | Y140: 0 | Z140: 50 | AA140: 0 | AB140: 52 | AC140: 0 | AD140: 54 | AE140: 0 | AF140: =K140+M140+O140+Q140+S140+U140+W140+Y140+AA140+AC140+AE140 -> 3 | AG140: 895 | AH140: 2685 | AI140: R10-P13
A141: DMN053 FAI01 | B141: Donna | C141: P.E. | D141: DMN053 | E141: FAI01 | F141: GIACCA MAGLIA ELASTI | G141: 46%CO46%SE6%PA2%PU | H141: E1066 | I141: LACCA | J141: 34 | K141: 0 | L141: 36 | M141: 0 | N141: 38 | O141: 2 | P141: 40 | Q141: 1 | R141: 42 | S141: 1 | T141: 44 | U141: 0 | V141: 46 | W141: 0 | X141: 48 | Y141: 0 | Z141: 50 | AA141: 0 | AB141: 52 | AC141: 0 | AD141: 54 | AE141: 0 | AF141: 4 | AG141: 895 | AH141: 3580 | AI141: R10-O4
A142: DMO017 F1B02 | B142: Donna | C142: A.I. | D142: DMO017 | E142: F1B02 | F142: GONNA LUNGA EVANESCE | G142: 100%WS | H142: E2672 | I142: PEPPER | J142: 34 | K142: 0 | L142: 36 | M142: 0 | N142: 38 | O142: 2 | P142: 40 | Q142: 0 | R142: 42 | S142: 0 | T142: 44 | U142: 0 | V142: 46 | W142: 0 | X142: 48 | Y142: 0 | Z142: 50 | AA142: 0 | AB142: 52 | AC142: 0 | AD142: 54 | AE142: 0 | AF142: 2 | AG142: 565.6 | AH142: 1131.2 | AI142: C11
A143: DMO052 F3L09 | B143: Donna | C143: P.E. | D143: DMO052 | E143: F3L09 | F143: GONNA LUNGA PLISSE' | G143: 100%CO | H143: E2635 | I143: ICE | J143: XXS | K143: 0 | L143: XS | M143: 1 | N143: S | O143: 5 | P143: M | Q143: 2 | R143: L | S143: 0 | T143: XL | U143: 0 | V143: XXL | W143: 0 | X143: XXXL | Y143: 0 | Z143: 4XL | AA143: 0 | AC143: 0 | AE143: 0 | AF143: 8 | AG143: 535 | AH143: 4280 | AI143: B8-G4
A144: 5 F3L09 | B144: Donna | C144: P.E. | D144: 5 | E144: F3L09 | F144: GONNA LUNGA PLISSE' | G144: 100%CO | H144: E2635 | I144: ICE | J144: XXS | K144: 0 | L144: XS | M144: 1 | N144: S | O144: 0 | P144: M | Q144: 0 | R144: L | S144: 0 | T144: XL | U144: 0 | V144: XXL | W144: 0 | X144: XXXL | Y144: 0 | Z144: 4XL | AA144: 0 | AC144: 0 | AE144: 0 | AF144: 1 | AG144: 535 | AH144: 535 | AI144: A8
A145: DMO052 F3L09 | B145: Donna | C145: P.E. | D145: DMO052 | E145: F3L09 | F145: GONNA LUNGA PLISSE' | G145: 100%CO | H145: E516 | I145: NERO | J145: XXS | K145: 0 | L145: XS | M145: 4 | N145: S | O145: 4 | P145: M | Q145: 2 | R145: L | S145: 0 | T145: XL | U145: 0 | V145: XXL | W145: 0 | X145: XXXL | Y145: 0 | Z145: 4XL | AA145: 0 | AC145: 0 | AE145: 0 | AF145: 10 | AG145: 535 | AH145: 5350 | AI145: G4C
A146: DMO052 F3L09 | B146: Donna | C146: P.E. | D146: DMO052 | E146: F3L09 | F146: GONNA LUNGA PLISSE' | G146: 100%CO | H146: E516 | I146: NERO | J146: XXS | K146: 0 | L146: XS | M146: 0 | N146: S | O146: 5 | P146: M | Q146: 0 | R146: L | S146: 0 | T146: XL | U146: 0 | V146: XXL | W146: 0 | X146: XXXL | Y146: 0 | Z146: 4XL | AA146: 0 | AC146: 0 | AE146: 0 | AF146: 5 | AG146: 535 | AH146: 2675 | AI146: O4
A147: DMO055 F8I12 | B147: Donna | C147: P.E. | D147: DMO055 | E147: F8I12 | F147: GONNA PLISSE | G147: 70%WS30%SE | H147: E1613 | I147: ANICE | J147: XXS | K147: 0 | L147: XS | M147: 1 | N147: S | O147: 0 | P147: M | Q147: 0 | R147: L | S147: 1 | T147: XL | U147: 0 | V147: XXL | W147: 0 | X147: XXXL | Y147: 0 | Z147: 4XL | AA147: 0 | AC147: 0 | AE147: 0 | AF147: 2 | AG147: 1381 | AH147: 2762 | AI147: C11-E4
A148: DMO055 F8I12 | B148: Donna | C148: P.E. | D148: DMO055 | E148: F8I12 | F148: GONNA PLISSE | G148: 70%WS30%SE | H148: E2116 | I148: INCHIOSTRO | J148: XXS | K148: 0 | L148: XS | M148: 1 | N148: S | O148: 1 | P148: M | Q148: 0 | R148: L | S148: 0 | T148: XL | U148: 0 | V148: XXL | W148: 0 | X148: XXXL | Y148: 0 | Z148: 4XL | AA148: 0 | AC148: 0 | AE148: 0 | AF148: 2 | AG148: 1235 | AH148: 2470 | AI148: E4
A149: DMP002 F1K02 | B149: Donna | C149: A.I. | D149: DMP002 | E149: F1K02 | F149: FUSEAUX | G149: 100%WS | H149: E1179 | I149: VULCANO | J149: XXS | K149: 0 | L149: XS | M149: 1 | N149: S | O149: 0 | P149: M | Q149: 0 | R149: L | S149: 0 | T149: XL | U149: 0 | V149: XXL | W149: 0 | X149: XXXL | Y149: 0 | Z149: 4XL | AA149: 0 | AC149: 0 | AE149: 0 | AF149: 1 | AG149: 613.2 | AH149: 613.2 | AI149: L7C
A150: DMP002 F1K02 | B150: Donna | C150: A.I. | D150: DMP002 | E150: F1K02 | F150: FUSEAUX | G150: 100%WS | H150: E1924 | I150: FUMO | J150: XXS | K150: 0 | L150: XS | M150: 1 | N150: S | O150: 0 | P150: M | Q150: 0 | R150: L | S150: 0 | T150: XL | U150: 0 | V150: XXL | W150: 0 | X150: XXXL | Y150: 0 | Z150: 4XL | AA150: 0 | AC150: 0 | AE150: 0 | AF150: 1 | AG150: 614 | AH150: 614 | AI150: P10
A151: DMP002 F1K02 | B151: Donna | C151: A.I. | D151: DMP002 | E151: F1K02 | F151: FUSEAUX | G151: 100%WS | H151: E2076 | I151: FOCA | J151: XXS | K151: 0 | L151: XS | M151: 2 | N151: S | O151: 2 | P151: M | Q151: 2 | R151: L | S151: 1 | T151: XL | U151: 0 | V151: XXL | W151: 0 | X151: XXXL | Y151: 0 | Z151: 4XL | AA151: 0 | AC151: 0 | AE151: 0 | AF151: 7 | AG151: 613.2 | AH151: 4292.4 | AI151: D2-P10
A152: DMP002 F1K02 | B152: Donna | C152: A.I. | D152: DMP002 | E152: F1K02 | F152: FUSEAUX | G152: 100%WS | H152: E2603 | I152: CASPIO | J152: XXS | K152: 0 | L152: XS | M152: 0 | N152: S | O152: 1 | P152: M | Q152: 2 | R152: L | S152: 0 | T152: XL | U152: 0 | V152: XXL | W152: 0 | X152: XXXL | Y152: 0 | Z152: 4XL | AA152: 0 | AC152: 0 | AE152: 0 | AF152: 3 | AG152: 613.2 | AH152: 1839.6 | AI152: C11
A153: DMP002 F1K02 | B153: Donna | C153: A.I. | D153: DMP002 | E153: F1K02 | F153: FUSEAUX | G153: 100%WS | H153: E2902 | I153: PURPLE | J153: XXS | K153: 0 | L153: XS | M153: 0 | N153: S | O153: 2 | P153: M | Q153: 0 | R153: L | S153: 0 | T153: XL | U153: 0 | V153: XXL | W153: 0 | X153: XXXL | Y153: 0 | Z153: 4XL | AA153: 0 | AC153: 0 | AE153: 0 | AF153: 2 | AG153: 613.2 | AH153: 1226.4 | AI153: P10
A154: DMP002 F1K02 | B154: Donna | C154: A.I. | D154: DMP002 | E154: F1K02 | F154: FUSEAUX | G154: 100%WS | H154: E2905 | I154: PINK | J154: XXS | K154: 0 | L154: XS | M154: 0 | N154: S | O154: 1 | P154: M | Q154: 1 | R154: L | S154: 0 | T154: XL | U154: 0 | V154: XXL | W154: 0 | X154: XXXL | Y154: 0 | Z154: 4XL | AA154: 0 | AC154: 0 | AE154: 0 | AF154: 2 | AG154: 613.2 | AH154: 1226.4 | AI154: P10
A155: DMP002 F1K02 | B155: Donna | C155: A.I. | D155: DMP002 | E155: F1K02 | F155: FUSEAUX | G155: 100%WS | H155: E2969 | I155: OCEANO | J155: XXS | K155: 0 | L155: XS | M155: 1 | N155: S | O155: 2 | P155: M | Q155: 0 | R155: L | S155: 0 | T155: XL | U155: 0 | V155: XXL | W155: 0 | X155: XXXL | Y155: 0 | Z155: 4XL | AA155: 0 | AC155: 0 | AE155: 0 | AF155: 3 | AG155: 613.2 | AH155: 1839.6 | AI155: P10
A156: DMP002 F3K10 | B156: Donna | C156: P.E. | D156: DMP002 | E156: F3K10 | F156: FUSEAUX | G156: 100%CO | H156: E105 | I156: CANDIDO | J156: XXS | K156: 0 | L156: XS | M156: 2 | N156: S | O156: 1 | P156: M | Q156: 1 | R156: L | S156: 1 | T156: XL | U156: 1 | V156: XXL | W156: 0 | X156: XXXL | Y156: 0 | Z156: 4XL | AA156: 0 | AC156: 0 | AE156: 0 | AF156: 6 | AG156: 195 | AH156: 1170 | AI156: B8
A157: DMP002 F3K10 | B157: Donna | C157: P.E. | D157: DMP002 | E157: F3K10 | F157: FUSEAUX | G157: 100%CO | H157: E2088 | I157: NAVY BLU | J157: XXS | K157: 0 | L157: XS | M157: 1 | N157: S | O157: 2 | P157: M | Q157: 1 | R157: L | S157: 1 | T157: XL | U157: 1 | V157: XXL | W157: 0 | X157: XXXL | Y157: 0 | Z157: 4XL | AA157: 0 | AC157: 0 | AE157: 0 | AF157: 6 | AG157: 195 | AH157: 1170 | AI157: B8-G7C
A158: DMP013 F1K02 | B158: Donna | C158: A.I. | D158: DMP013 | E158: F1K02 | F158: LEGGING CON TUBOLARI | G158: 100%WS | H158: E2098 | I158: YOGURT | J158: XXS | K158: 0 | L158: XS | M158: 1 | N158: S | O158: 0 | P158: M | Q158: 1 | R158: L | S158: 2 | T158: XL | U158: 0 | V158: XXL | W158: 0 | X158: XXXL | Y158: 0 | Z158: 4XL | AA158: 0 | AC158: 0 | AE158: 0 | AF158: 4 | AG158: 504 | AH158: 2016 | AI158: P10C-P13
A159: DMP013 F1K02 | B159: Donna | C159: A.I. | D159: DMP013 | E159: F1K02 | F159: LEGGING CON TUBOLARI | G159: 100%WS | H159: E2112 | I159: BRANDY | J159: XXS | K159: 0 | L159: XS | M159: 1 | N159: S | O159: 0 | P159: M | Q159: 0 | R159: L | S159: 1 | T159: XL | U159: 0 | V159: XXL | W159: 0 | X159: XXXL | Y159: 0 | Z159: 4XL | AA159: 0 | AC159: 0 | AE159: 0 | AF159: 2 | AG159: 504 | AH159: 1008 | AI159: P10
A160: DMP028 FCL03 | B160: Donna | C160: P.E. | D160: DMP028 | E160: FCL03 | F160: PANTALONE DOUBLE FON | G160: 52%WV40%CO8%PA | H160: EI067 | I160: SABBIA | J160: 34 | K160: 0 | L160: 36 | M160: 0 | N160: 38 | O160: 2 | P160: 40 | Q160: 6 | R160: 42 | S160: 3 | T160: 44 | U160: 1 | V160: 46 | W160: 0 | X160: 48 | Y160: 0 | Z160: 50 | AA160: 0 | AB160: 52 | AC160: 0 | AD160: 54 | AE160: 0 | AF160: 12 | AG160: 605 | AH160: 7260 | AI160: N1C-P9
A161: DMP029 F8L08 | B161: Donna | C161: P.E. | D161: DMP029 | E161: F8L08 | F161: PANTALONE AMPIO CON | G161: 70%WS30%SE | H161: E1138 | I161: KAKI | J161: XXS | K161: 0 | L161: XS | M161: 0 | N161: S | O161: 2 | P161: M | Q161: 0 | R161: L | S161: 0 | T161: XL | U161: 0 | V161: XXL | W161: 0 | X161: XXXL | Y161: 0 | Z161: 4XL | AA161: 0 | AC161: 0 | AE161: 0 | AF161: 2 | AG161: 895 | AH161: 1790 | AI161: E3
A162: DMP029 F8L08 | B162: Donna | C162: P.E. | D162: DMP029 | E162: F8L08 | F162: PANTALONE AMPIO CON | G162: 70%WS30%SE | H162: E2116 | I162: INCHIOSTRO | J162: XXS | K162: 0 | L162: XS | M162: 1 | N162: S | O162: 0 | P162: M | Q162: 0 | R162: L | S162: 0 | T162: XL | U162: 0 | V162: XXL | W162: 0 | X162: XXXL | Y162: 0 | Z162: 4XL | AA162: 0 | AC162: 0 | AE162: 0 | AF162: 1 | AG162: 895 | AH162: 895 | AI162: E7
A163: DMP029 F8L08 | B163: Donna | C163: P.E. | D163: DMP029 | E163: F8L08 | F163: PANTALONE AMPIO CON | G163: 70%WS30%SE | H163: E2606 | I163: CANDICE | J163: XXS | K163: 0 | L163: XS | M163: 2 | N163: S | O163: 1 | P163: M | Q163: 0 | R163: L | S163: 0 | T163: XL | U163: 0 | V163: XXL | W163: 0 | X163: XXXL | Y163: 0 | Z163: 4XL | AA163: 0 | AC163: 0 | AE163: 0 | AF163: 3 | AG163: 895 | AH163: 2685 | AI163: E3-E7C
A164: DMP029 F8L08 | B164: Donna | C164: P.E. | D164: DMP029 | E164: F8L08 | F164: PANTALONE AMPIO CON | G164: 70%WS30%SE | H164: E2662 | I164: CHIA | J164: XXS | K164: 0 | L164: XS | M164: 0 | N164: S | O164: 1 | P164: M | Q164: 0 | R164: L | S164: 0 | T164: XL | U164: 0 | V164: XXL | W164: 0 | X164: XXXL | Y164: 0 | Z164: 4XL | AA164: 0 | AC164: 0 | AE164: 0 | AF164: 1 | AG164: 1005.2 | AH164: 1005.2 | AI164: D2
A165: DMP029 F8L08 | B165: Donna | C165: P.E. | D165: DMP029 | E165: F8L08 | F165: PANTALONE AMPIO CON | G165: 70%WS30%SE | H165: E516 | I165: NERO | J165: XXS | K165: 0 | L165: XS | M165: 0 | N165: S | O165: 2 | P165: M | Q165: 1 | R165: L | S165: 1 | T165: XL | U165: 0 | V165: XXL | W165: 0 | X165: XXXL | Y165: 0 | Z165: 4XL | AA165: 0 | AC165: 0 | AE165: 0 | AF165: 4 | AG165: 895 | AH165: 3580 | AI165: O4-P13
A166: DMP031 F1B02 | B166: Donna | C166: A.I. | D166: DMP031 | E166: F1B02 | F166: PANTALONE AMPIO M. I | G166: 100%WS | H166: E2702 | I166: MALVA | J166: XXS | K166: 0 | L166: XS | M166: 0 | N166: S | O166: 1 | P166: M | Q166: 0 | R166: L | S166: 0 | T166: XL | U166: 0 | V166: XXL | W166: 0 | X166: XXXL | Y166: 0 | Z166: 4XL | AA166: 0 | AC166: 0 | AE166: 0 | AF166: 1 | AG166: 974.4 | AH166: 974.4 | AI166: D2
A167: =CONCATENATE(D167, " ", E167 ) -> DMS042 F3G01 | B167: Donna | C167: P.E. | D167: DMS042 | E167: F3G01 | F167: ABITO SENZA MANICHE | G167: 100%CO | H167: E105 | I167: BIANCO | J167: XS | K167: 0 | L167: S | M167: 0 | N167: M | O167: 1 | P167: L | Q167: 0 | R167: XL | S167: 0 | T167: XXL | U167: 0 | W167: 0 | Y167: 0 | AA167: 0 | AC167: 0 | AE167: 0 | AF167: 1 | AG167: 1115 | AH167: 1115 | AI167: P100
A168: DMS042 F3G01 | B168: Donna | C168: P.E. | D168: DMS042 | E168: F3G01 | F168: ABITO SENZA MANICHE | G168: 100%CO | H168: E1050 | I168: CAFFE | J168: XS | K168: 0 | L168: S | M168: 0 | N168: M | O168: 6 | P168: L | Q168: 4 | R168: XL | S168: 0 | T168: XXL | U168: 0 | W168: 0 | Y168: 0 | AA168: 0 | AC168: 0 | AE168: 0 | AF168: 10 | AG168: 1115 | AH168: 11150 | AI168: D3-F4-P1C-P4-P16
A169: DMS049 FDZ01 | B169: Donna | C169: P.E. | D169: DMS049 | E169: FDZ01 | F169: ABITO BICOLORE CON R | G169: 50%CO50%SE | H169: E0028 | I169: CLAY | J169: 34 | K169: 0 | L169: 36 | M169: 0 | N169: 38 | O169: 0 | P169: 40 | Q169: 0 | R169: 42 | S169: 1 | T169: 44 | U169: 1 | V169: 46 | W169: 0 | X169: 48 | Y169: 0 | Z169: 50 | AA169: 0 | AB169: 52 | AC169: 0 | AD169: 54 | AE169: 0 | AF169: 2 | AG169: 450 | AH169: 900 | AI169: F4C-D3
A170: DMS049 FDZ01 | B170: Donna | C170: P.E. | D170: DMS049 | E170: FDZ01 | F170: ABITO BICOLORE CON R | G170: 50%CO50%SE | H170: E0028 | I170: GRIGIO SCURO | J170: 34 | K170: 0 | L170: 36 | M170: 0 | N170: 38 | O170: 0 | P170: 40 | Q170: 2 | R170: 42 | S170: 2 | T170: 44 | U170: 3 | V170: 46 | W170: 1 | X170: 48 | Y170: 1 | Z170: 50 | AA170: 0 | AB170: 52 | AC170: 0 | AD170: 54 | AE170: 0 | AF170: 9 | AG170: 450 | AH170: 4050 | AI170: F3-F2-P1-L2-L6-P11-M7
A171: DMS049 FDZ01 | B171: Donna | C171: P.E. | D171: DMS049 | E171: FDZ01 | F171: ABITO BICOLORE CON R | G171: 50%CO50%SE | H171: E0197 | I171: OLTREMARE | J171: 34 | K171: 0 | L171: 36 | M171: 0 | N171: 38 | O171: 0 | P171: 40 | Q171: 0 | R171: 42 | S171: 1 | T171: 44 | U171: 1 | V171: 46 | W171: 0 | X171: 48 | Y171: 0 | Z171: 50 | AA171: 0 | AB171: 52 | AC171: 0 | AD171: 54 | AE171: 0 | AF171: 2 | AG171: 450 | AH171: 900 | AI171: D3-P5
A172: DMS111 F3A05 | B172: Donna | C172: P.E. | D172: DMS111 | E172: F3A05 | F172: ABITO CON PAILLETTE | G172: 100%CO | H172: E1050 | I172: MASTICE | J172: XXS | K172: 0 | L172: XS | M172: 0 | N172: S | O172: 5 | P172: M | Q172: 3 | R172: L | S172: 0 | T172: XL | U172: 0 | V172: XXL | W172: 0 | X172: XXXL | Y172: 0 | Z172: 4XL | AA172: 0 | AC172: 0 | AE172: 0 | AF172: 8 | AG172: 3755 | AH172: 30040 | AI172: O4
A173: DMS111 F3A05 | B173: Donna | C173: P.E. | D173: DMS111 | E173: F3A05 | F173: ABITO CON PAILLETTE | G173: 100%CO | H173: E516 | I173: NERO | J173: XXS | K173: 0 | L173: XS | M173: 0 | N173: S | O173: 0 | P173: M | Q173: 2 | R173: L | S173: 0 | T173: XL | U173: 0 | V173: XXL | W173: 0 | X173: XXXL | Y173: 0 | Z173: 4XL | AA173: 0 | AC173: 0 | AE173: 0 | AF173: 2 | AG173: 3755 | AH173: 7510 | AI173: O4
A174: DMS111 F3A05 | B174: Donna | C174: P.E. | D174: DMS111 | E174: F3A05 | F174: ABITO CON PAILLETTE | G174: 100%CO | H174: E516 | I174: NERO | J174: XXS | K174: 0 | L174: XS | M174: 0 | N174: S | O174: 1 | P174: M | Q174: 0 | R174: L | S174: 0 | T174: XL | U174: 0 | V174: XXL | W174: 0 | X174: XXXL | Y174: 0 | Z174: 4XL | AA174: 0 | AC174: 0 | AE174: 0 | AF174: 1 | AG174: 3755 | AH174: 3755 | AI174: E8C
A175: DMS200 F3I11 | B175: Donna | C175: P.E. | D175: DMS200 | E175: F3I11 | F175: ABITO LINKS | G175: 100%CO | H175: E2570 | I175: OCEAN | J175: XXS | K175: 0 | L175: XS | M175: 0 | N175: S | O175: 0 | P175: M | Q175: 1 | R175: L | S175: 2 | T175: XL | U175: 0 | V175: XXL | W175: 0 | X175: XXXL | Y175: 0 | Z175: 4XL | AA175: 0 | AC175: 0 | AE175: 0 | AF175: 3 | AG175: 730 | AH175: 2190 | AI175: E8-G5C
A176: =CONCATENATE(D176, " ", E176 ) -> DMS201 F8Z02 | B176: Donna | C176: P.E. | D176: DMS201 | E176: F8Z02 | F176: ABITO DOPPIO USO OVE | G176: 70%WS30%SE | H176: E2116 | I176: INCHIOSTRO | J176: 34 | K176: 0 | L176: 36 | M176: 0 | N176: 38 | O176: 0 | P176: 40 | Q176: 1 | R176: 42 | S176: 1 | T176: 44 | U176: 0 | V176: 46 | W176: 0 | X176: 48 | Y176: 0 | Z176: 50 | AA176: 0 | AB176: 52 | AC176: 0 | AD176: 54 | AE176: 0 | AF176: 2 | AG176: 995 | AH176: 1990 | AI176: E3-E7C
A177: DMS201 F8Z02 | B177: Donna | C177: P.E. | D177: DMS201 | E177: F8Z02 | F177: ABITO DOPPIO USO OVE | G177: 70%WS30%SE | H177: E2594 | I177: ICE FIELD | J177: 34 | K177: 0 | L177: 36 | M177: 0 | N177: 38 | O177: 0 | P177: 40 | Q177: 0 | R177: 42 | S177: 2 | T177: 44 | U177: 0 | V177: 46 | W177: 0 | X177: 48 | Y177: 0 | Z177: 50 | AA177: 0 | AB177: 52 | AC177: 0 | AD177: 54 | AE177: 0 | AF177: 2 | AG177: 995 | AH177: 1990 | AI177: E3-H1
A178: DMS201 F8Z02 | B178: Donna | C178: P.E. | D178: DMS201 | E178: F8Z02 | F178: ABITO DOPPIO USO OVE | G178: 70%WS30%SE | H178: E2594 | I178: ICE FIELD | J178: 34 | K178: 0 | L178: 36 | M178: 0 | N178: 38 | O178: 0 | P178: 40 | Q178: 1 | R178: 42 | S178: 0 | T178: 44 | U178: 0 | V178: 46 | W178: 0 | X178: 48 | Y178: 0 | Z178: 50 | AA178: 0 | AB178: 52 | AC178: 0 | AD178: 54 | AE178: 0 | AF178: 1 | AG178: 995 | AH178: 995 | AI178: P13
A179: DMS201 F8Z02 | B179: Donna | C179: P.E. | D179: DMS201 | E179: F8Z02 | F179: ABITO DOPPIO USO OVE | G179: 70%WS30%SE | H179: E2645 | I179: CROMO | J179: 34 | K179: 0 | L179: 36 | M179: 0 | N179: 38 | O179: 0 | P179: 40 | Q179: 1 | R179: 42 | S179: 0 | T179: 44 | U179: 0 | V179: 46 | W179: 0 | X179: 48 | Y179: 0 | Z179: 50 | AA179: 0 | AB179: 52 | AC179: 0 | AD179: 54 | AE179: 0 | AF179: 1 | AG179: 995 | AH179: 995 | AI179: H1
A180: DMS201 F8Z02 | B180: Donna | C180: P.E. | D180: DMS201 | E180: F8Z02 | F180: ABITO DOPPIO USO OVE | G180: 70%WS30%SE | H180: E516 | I180: NERO | J180: 34 | K180: 0 | L180: 36 | M180: 0 | N180: 38 | O180: 1 | P180: 40 | Q180: 0 | R180: 42 | S180: 0 | T180: 44 | U180: 0 | V180: 46 | W180: 0 | X180: 48 | Y180: 0 | Z180: 50 | AA180: 0 | AB180: 52 | AC180: 0 | AD180: 54 | AE180: 0 | AF180: 1 | AG180: 995 | AH180: 995 | AI180: E3
A181: DMS202 FDI11 | B181: Donna | C181: P.E. | D181: DMS202 | E181: FDI11 | F181: ABITO COSTE SENZA MA | G181: 50%SE50%CO | H181: EK621 | I181: E2559/E2571 | J181: 34 | K181: 0 | L181: 36 | M181: 0 | N181: 38 | O181: 0 | P181: 40 | Q181: 1 | R181: 42 | S181: 0 | T181: 44 | U181: 0 | V181: 46 | W181: 0 | X181: 48 | Y181: 0 | Z181: 50 | AA181: 0 | AB181: 52 | AC181: 0 | AD181: 54 | AE181: 0 | AF181: 1 | AG181: 620 | AH181: 620 | AI181: G8C
A182: =CONCATENATE(D182, " ", E182 ) -> DMS220 F3Z20 | B182: Donna | C182: P.E. | D182: DMS220 | E182: F3Z20 | F182: ABITO MANICA A 3/4 | G182: 100%CO | H182: E2079 | I182: LATTE | J182: XXS | K182: 0 | L182: XS | M182: 0 | N182: S | O182: 2 | P182: M | Q182: 0 | R182: L | S182: 0 | T182: XL | U182: 0 | V182: XXL | W182: 0 | X182: XXXL | Y182: 0 | Z182: 4XL | AA182: 0 | AC182: 0 | AE182: 0 | AF182: 2 | AG182: 605 | AH182: 1210 | AI182: F3
A183: DMS220 F3Z20 | B183: Donna | C183: P.E. | D183: DMS220 | E183: F3Z20 | F183: ABITO MANICA A 3/4 | G183: 100%CO | H183: E2654 | I183: MAGENTA | J183: XXS | K183: 0 | L183: XS | M183: 2 | N183: S | O183: 0 | P183: M | Q183: 0 | R183: L | S183: 0 | T183: XL | U183: 0 | V183: XXL | W183: 0 | X183: XXXL | Y183: 0 | Z183: 4XL | AA183: 0 | AC183: 0 | AE183: 0 | AF183: 2 | AG183: 605 | AH183: 1210 | AI183: N8-P5
A184: DMS220 F3Z20 | B184: Donna | C184: P.E. | D184: DMS220 | E184: F3Z20 | F184: ABITO MANICA A 3/4 | G184: 100%CO | H184: E2655 | I184: BURGUNDY | J184: XXS | K184: 0 | L184: XS | M184: 2 | N184: S | O184: 5 | P184: M | Q184: 5 | R184: L | S184: 0 | T184: XL | U184: 0 | V184: XXL | W184: 0 | X184: XXXL | Y184: 0 | Z184: 4XL | AA184: 0 | AC184: 0 | AE184: 0 | AF184: 12 | AG184: 605 | AH184: 7260 | AI184: D3-P11-N8-F4C-F2-L6C
A185: DMX073 F3Z16 | B185: Donna | C185: P.E. | D185: DMX073 | E185: F3Z16 | F185: DMF120-F3Z16+FMG325- | G185: 100%CO | H185: E2570 | I185: OCEAN | J185: 34 | K185: 0 | L185: 36 | M185: 0 | N185: 38 | O185: 0 | P185: 40 | Q185: 0 | R185: 42 | S185: 0 | T185: 44 | U185: 1 | V185: 46 | W185: 0 | X185: 48 | Y185: 0 | Z185: 50 | AA185: 0 | AB185: 52 | AC185: 0 | AD185: 54 | AE185: 0 | AF185: 1 | AG185: 650 | AH185: 650 | AI185: M7C
A186: DP1127 T3U03 | B186: Accessori | C186: P.E. | D186: DP1127 | E186: T3U03 | F186: SCARPA FRIULANA | G186: 100%CO | H186: EL800 | I186: GLACÈ/GLACÈ | J186: 35 | K186: 0 | L186: 35M | M186: 0 | N186: 36 | O186: 1 | P186: 36M | Q186: 0 | R186: 37 | S186: 1 | T186: 37M | U186: 0 | V186: 38 | W186: 0 | X186: 38M | Y186: 0 | Z186: 39 | AA186: 0 | AB186: 39M | AC186: 0 | AD186: 40 | AE186: 0 | AF186: 2 | AG186: 219 | AH186: 438 | AI186: B6
A187: DR6022 T4U10 | B187: Donna | C187: P.E. | D187: DR6022 | E187: T4U10 | F187: GIUBBINO CORTO | G187: 100%SE | H187: E0091 | I187: PLATINUM | J187: 34 | K187: 0 | L187: 36 | M187: 0 | N187: 38 | O187: 0 | P187: 40 | Q187: 1 | R187: 42 | S187: 0 | T187: 44 | U187: 0 | V187: 46 | W187: 0 | X187: 48 | Y187: 0 | Z187: 50 | AA187: 0 | AB187: 52 | AC187: 0 | AD187: 54 | AE187: 0 | AF187: 1 | AG187: 1510 | AH187: 1510 | AI187: A1
A188: DR6024 THU27 | B188: Donna | C188: P.E. | D188: DR6024 | E188: THU27 | F188: GIUBBOTTO SFODERATO | G188: 100%PL | H188: EL221 | I188: CANDIDO/E0091 | J188: 34 | K188: 0 | L188: 36 | M188: 0 | N188: 38 | O188: 0 | P188: 40 | Q188: 0 | R188: 42 | S188: 3 | T188: 44 | U188: 2 | V188: 46 | W188: 0 | X188: 48 | Y188: 0 | Z188: 50 | AA188: 0 | AB188: 52 | AC188: 0 | AD188: 54 | AE188: 0 | AF188: 5 | AG188: 1695 | AH188: 8475 | AI188: A1-L1
A189: DR6024 THU27 | B189: Donna | C189: P.E. | D189: DR6024 | E189: THU27 | F189: GIUBBOTTO SFODERATO | G189: 100%PL | H189: EL222 | I189: BLU/E0091 | J189: 34 | K189: 0 | L189: 36 | M189: 0 | N189: 38 | O189: 0 | P189: 40 | Q189: 1 | R189: 42 | S189: 1 | T189: 44 | U189: 0 | V189: 46 | W189: 0 | X189: 48 | Y189: 0 | Z189: 50 | AA189: 0 | AB189: 52 | AC189: 0 | AD189: 54 | AE189: 0 | AF189: 2 | AG189: 1695 | AH189: 3390 | AI189: A1-L1
A190: DR6024 THU27 | B190: Donna | C190: P.E. | D190: DR6024 | E190: THU27 | F190: GIUBBOTTO SFODERATO | G190: 100%PL | H190: EL223 | I190: ROSSO/E0091 | J190: 34 | K190: 0 | L190: 36 | M190: 0 | N190: 38 | O190: 1 | P190: 40 | Q190: 0 | R190: 42 | S190: 0 | T190: 44 | U190: 0 | V190: 46 | W190: 0 | X190: 48 | Y190: 0 | Z190: 50 | AA190: 0 | AB190: 52 | AC190: 0 | AD190: 54 | AE190: 0 | AF190: 1 | AG190: 1695 | AH190: 1695 | AI190: G2C
A191: DR6024 THU27 | B191: Donna | C191: P.E. | D191: DR6024 | E191: THU27 | F191: GIUBBOTTO SFODERATO | G191: 100%PL | H191: EL223 | I191: ROSSO/E0091 | J191: 34 | K191: 0 | L191: 36 | M191: 0 | N191: 38 | O191: 0 | P191: 40 | Q191: 1 | R191: 42 | S191: 0 | T191: 44 | U191: 0 | V191: 46 | W191: 0 | X191: 48 | Y191: 0 | Z191: 50 | AA191: 0 | AB191: 52 | AC191: 0 | AD191: 54 | AE191: 0 | AF191: 1 | AG191: 1695 | AH191: 1695 | AI191: A1
A192: DR6025 THU27 | B192: Donna | C192: P.E. | D192: DR6025 | E192: THU27 | F192: PARKA CON CAPPUCCIO | G192: 100%PL | H192: EL220 | I192: PERLA/E105 | J192: 34 | K192: 0 | L192: 36 | M192: 0 | N192: 38 | O192: 0 | P192: 40 | Q192: 2 | R192: 42 | S192: 1 | T192: 44 | U192: 0 | V192: 46 | W192: 0 | X192: 48 | Y192: 0 | Z192: 50 | AA192: 0 | AB192: 52 | AC192: 0 | AD192: 54 | AE192: 0 | AF192: 3 | AG192: 1795 | AH192: 5385 | AI192: C3
A193: DR6025 THU27 | B193: Donna | C193: P.E. | D193: DR6025 | E193: THU27 | F193: PARKA CON CAPPUCCIO | G193: 100%PL | H193: EL221 | I193: CANDIDO/E0091 | J193: 34 | K193: 0 | L193: 36 | M193: 0 | N193: 38 | O193: 1 | P193: 40 | Q193: 0 | R193: 42 | S193: 0 | T193: 44 | U193: 0 | V193: 46 | W193: 0 | X193: 48 | Y193: 0 | Z193: 50 | AA193: 0 | AB193: 52 | AC193: 0 | AD193: 54 | AE193: 0 | AF193: 1 | AG193: 1795 | AH193: 1795 | AI193: G2C
A194: DR6025 THU27 | B194: Donna | C194: P.E. | D194: DR6025 | E194: THU27 | F194: PARKA CON CAPPUCCIO | G194: 100%PL | H194: EL221 | I194: CANDIDO/E0091 | J194: 34 | K194: 0 | L194: 36 | M194: 0 | N194: 38 | O194: 1 | P194: 40 | Q194: 2 | R194: 42 | S194: 1 | T194: 44 | U194: 0 | V194: 46 | W194: 0 | X194: 48 | Y194: 0 | Z194: 50 | AA194: 0 | AB194: 52 | AC194: 0 | AD194: 54 | AE194: 0 | AF194: 4 | AG194: 1795 | AH194: 7180 | AI194: L2
A195: DR6027 TAU80 | B195: Donna | C195: P.E. | D195: DR6027 | E195: TAU80 | F195: GIACCHINO TASCHE | G195: 99%CO1%EA | H195: E105 | I195: CANDIDO | J195: 34 | K195: 0 | L195: 36 | M195: 0 | N195: 38 | O195: 0 | P195: 40 | Q195: 1 | R195: 42 | S195: 1 | T195: 44 | U195: 2 | V195: 46 | W195: 1 | X195: 48 | Y195: 1 | Z195: 50 | AA195: 0 | AB195: 52 | AC195: 0 | AD195: 54 | AE195: 0 | AF195: 6 | AG195: 630 | AH195: =AG195*AF195 -> 3780 | AI195: L4-L5C
A196: DR6028 T1U01 | B196: Donna | C196: A.I. | D196: DR6028 | E196: T1U01 | F196: CAPPOTTO DOUBLE OVER | G196: 100%WS | H196: E2088 | I196: NAVY BLU | J196: 34 | K196: 0 | L196: 36 | M196: 0 | N196: 38 | O196: 1 | P196: 40 | Q196: 0 | R196: 42 | S196: 1 | T196: 44 | U196: 1 | V196: 46 | W196: 0 | X196: 48 | Y196: 0 | Z196: 50 | AA196: 0 | AB196: 52 | AC196: 0 | AD196: 54 | AE196: 0 | AF196: 3 | AG196: 3335 | AH196: 10005 | AI196: D4
A197: DR6029 T1U01 | B197: Donna | C197: A.I. | D197: DR6029 | E197: T1U01 | F197: CAPPOTTO SMANICATO | G197: 100%WS | H197: E105 | I197: CANDIDO | J197: 34 | K197: 0 | L197: 36 | M197: 0 | N197: 38 | O197: 0 | P197: 40 | Q197: 0 | R197: 42 | S197: 3 | T197: 44 | U197: 0 | V197: 46 | W197: 0 | X197: 48 | Y197: 0 | Z197: 50 | AA197: 0 | AB197: 52 | AC197: 0 | AD197: 54 | AE197: 0 | AF197: 3 | AG197: 2940 | AH197: 8820 | AI197: D7
A198: DR6029 T1U01 | B198: Donna | C198: A.I. | D198: DR6029 | E198: T1U01 | F198: CAPPOTTO SMANICATO | G198: 100%WS | H198: E2088 | I198: NAVY BLU | J198: 34 | K198: 0 | L198: 36 | M198: 0 | N198: 38 | O198: 0 | P198: 40 | Q198: 1 | R198: 42 | S198: 0 | T198: 44 | U198: 1 | V198: 46 | W198: 0 | X198: 48 | Y198: 0 | Z198: 50 | AA198: 0 | AB198: 52 | AC198: 0 | AD198: 54 | AE198: 0 | AF198: 2 | AG198: 2940 | AH198: 5880 | AI198: D7
A199: DR6052 TDU22 | B199: Donna | C199: P.E. | D199: DR6052 | E199: TDU22 | F199: CAPPOTTO VASTAGLIA | G199: 56%SE44%CA | H199: E1225 | I199: CHALK | J199: 34 | K199: 0 | L199: 36 | M199: 0 | N199: 38 | O199: 0 | P199: 40 | Q199: 1 | R199: 42 | S199: 0 | T199: 44 | U199: 0 | V199: 46 | W199: 0 | X199: 48 | Y199: 0 | Z199: 50 | AA199: 0 | AB199: 52 | AC199: 0 | AD199: 54 | AE199: 0 | AF199: 1 | AG199: 1625 | AH199: 1625 | AI199: O4
A200: DR6053 TCU61 | B200: Donna | C200: P.E. | D200: DR6053 | E200: TCU61 | F200: CAPPOTTO CORTO C/CIN | G200: 88%WV10%SE2%PA | H200: E1225 | I200: CHALK | J200: 34 | K200: 0 | L200: 36 | M200: 0 | N200: 38 | O200: 2 | P200: 40 | Q200: 6 | R200: 42 | S200: 7 | T200: 44 | U200: 0 | V200: 46 | W200: 0 | X200: 48 | Y200: 0 | Z200: 50 | AA200: 0 | AB200: 52 | AC200: 0 | AD200: 54 | AE200: 0 | AF200: 15 | AG200: 1780 | AH200: 26700 | AI200: D7-F1C
... 1112 more rows
